Workbook

Sheet Instructions

Sheet Sheet1

Sheet Total
A1: NAICS | B1: (All) | C1: =VLOOKUP(B1,NAICS!A1:B2600,2,FALSE) -> 
A3: Sum of Total Taxable | B3: Column Labels | V3: Code | W3: Industry Title
A4: Row Labels | B4: Coupeville | C4: Langley | D4: Oak Harbor | E4: Unic Is Co | F4: Grand Total | V4: 11 | W4: Agriculture, Forestry, Fishing and Hunting
A5: 2014 Quarter 1 | B5: 8777594 | C5: 7397435 | D5: 72683696 | E5: 86719458 | F5: 175578183 | V5: 21 | W5: Mining
A6: 2014 Quarter 2 | B6: 10657288 | C6: 9145967 | D6: 80928322 | E6: 94258126 | F6: 194989703 | V6: 22 | W6: Utilities
A7: 2014 Quarter 3 | B7: 11924741 | C7: 11487725 | D7: 83749226 | E7: 105853873 | F7: 213015565 | V7: 23 | W7: Construction
A8: 2014 Quarter 4 | B8: 10237937 | C8: 9154497 | D8: 81271950 | E8: 105315571 | F8: 205979955 | V8: 31-33 | W8: Manufacturing
A9: 2015 Quarter 1 | B9: 9519402 | C9: 7811245 | D9: 75790719 | E9: 97265379 | F9: 190386745 | V9: 42 | W9: Wholesale Trade
A10: 2015 Quarter 2 | B10: 11073628 | C10: 8989338 | D10: 87666274 | E10: 112560763 | F10: 220290003 | V10: 44-45 | W10: Retail Trade
A11: 2015 Quarter 3 | B11: 12691867 | C11: 12271285 | D11: 92829278 | E11: 117678010 | F11: 235470440 | V11: 48-49 | W11: Transportation and Warehousing
A12: 2015 Quarter 4 | B12: 14284608 | C12: 10506084 | D12: 90965132 | E12: 113395164 | F12: 229150988 | V12: 51 | W12: Information
A13: 2016 Quarter 1 | B13: 15076444 | C13: 8312506 | D13: 85008881 | E13: 103794931 | F13: 212192762 | V13: 52 | W13: Finance and Insurance
A14: 2016 Quarter 2 | B14: 16452080 | C14: 10359931 | D14: 102904792 | E14: 121095892 | F14: 250812695 | V14: 53 | W14: Real Estate Rental and Leasing
A15: 2016 Quarter 3 | B15: 18081679 | C15: 13416735 | D15: 105459441 | E15: 136129231 | F15: 273087086 | V15: 54 | W15: Professional, Scientific, and Technical Services
A16: 2016 Quarter 4 | B16: 17726155 | C16: 11985075 | D16: 100246743 | E16: 130213240 | F16: 260171213 | V16: 55 | W16: Management of Companies and Enterprises
A17: 2017 Quarter 1 | B17: 19355964 | C17: 9468342 | D17: 94892000 | E17: 119451295 | F17: 243167601 | V17: 56 | W17: Administrative and Support and Waste Management and Remediation Services
A18: 2017 Quarter 2 | B18: 19011181 | C18: 11640437 | D18: 110568703 | E18: 145012384 | F18: 286232705 | V18: 61 | W18: Educational Services
A19: 2017 Quarter 3 | B19: 17093582 | C19: 14248505 | D19: 116593598 | E19: 156299435 | F19: 304235120 | V19: 62 | W19: Health Care and Social Assistance
A20: 2017 Quarter 4 | B20: 14179705 | C20: 12508426 | D20: 117482190 | E20: 151012864 | F20: 295183185 | V20: 71 | W20: Arts, Entertainment, and Recreation
A21: 2018 Quarter 1 | B21: 13911536 | C21: 10242984 | D21: 110736525 | E21: 138025689 | F21: 272916734 | V21: 72 | W21: Accommodation and Food Services
A22: 2018 Quarter 2 | B22: 16990270 | C22: 12317065 | D22: 123303018 | E22: 161181907 | F22: 313792260 | V22: 81 | W22: Other Services (except Public Administration)
A23: 2018 Quarter 3 | B23: 17830355 | C23: 14888961 | D23: 126765864 | E23: 170380580 | F23: 329865760 | V23: 92 | W23: Public Administration
A24: 2018 Quarter 4 | B24: 17887550 | C24: 12403616 | D24: 125515949 | E24: 168591123 | F24: 324398238
A25: 2019 Quarter 1 | B25: 14677218 | C25: 10249339 | D25: 103242737 | E25: 148049413 | F25: 276218707
A26: 2019 Quarter 2 | B26: 15736306 | C26: 13460624 | D26: 121208046 | E26: 183790832 | F26: 334195808
A27: 2019 Quarter 3 | B27: 17164628 | C27: 16212690 | D27: 116898880 | E27: 192719796 | F27: 342995994
A28: 2019 Quarter 4 | B28: 15728175 | C28: 14230334 | D28: 119392794 | E28: 182011934 | F28: 331363237 | J28: Coupeville | K28: Langley | L28: Oak Harbor | M28: Unic Is Co | N28: All Locations
A29: 2020 Quarter 1 | B29: 13036976 | C29: 10470110 | D29: 105943414 | E29: 162002235 | F29: 291452735 | I29: Median | J29: =MEDIAN(B5:B37) -> 16064193 | K29: =MEDIAN(C5:C37) -> 11985075 | L29: =MEDIAN(D5:D37) -> 110736525 | M29: =MEDIAN(E5:E37) -> 151012864 | N29: =MEDIAN(F5:F37) -> 291452735
A30: 2021 Quarter 2 | B30: 19290789 | C30: 14364768 | D30: 147319403 | E30: 244800603 | F30: 425775563 | I30: Average | J30: =AVERAGE(B5:B37) -> 15408241 | K30: =AVERAGE(C5:C37) -> 11877221.91 | L30: =AVERAGE(D5:D37) -> 110336970 | M30: =AVERAGE(E5:E37) -> 157237506.2 | N30: =AVERAGE(F5:F37) -> 294859939.2
A31: 2021 Quarter 3 | B31: 21195670 | C31: 17499629 | D31: 146741238 | E31: 251947761 | F31: 437384298 | I31: Minimum | J31: =MIN(B5:B37) -> 8777594 | K31: =MIN(C5:C37) -> 7397435 | L31: =MIN(D5:D37) -> 72683696 | M31: =MIN(E5:E37) -> 86719458 | N31: =MIN(F5:F37) -> 175578183
A32: 2021 Quarter 4 | B32: 18631063 | C32: 14692489 | D32: 144963790 | E32: 244576913 | F32: 422864255 | I32: Maximum | J32: =MAX(B5:B37) -> 21195670 | K32: =MAX(C5:C37) -> 17499629 | L32: =MAX(D5:D37) -> 147319403 | M32: =MAX(E5:E37) -> 251947761 | N32: =MAX(F5:F37) -> 437384298
A33: 2022 Quarter 1 | B33: 17541632 | C33: 13558046 | D33: 136153112 | E33: 232547964 | F33: 399800754 | I33: Yr Over Yr | J33: =B37-B33 -> -1477439 | K33: =C37-C33 -> -2086496 | L33: =D37-D33 -> -11374048 | M33: =E37-E33 -> -27149219 | N33: =F37-F33 -> -42087202
A34: 2020 Quarter 2 | B34: 12809076 | C34: 9163680 | D34: 120675843 | E34: 174520115 | F34: 317168714 | I34: Yr Over Yr % Change | J34: =J$33/B$33 -> -0.08422471752 | K34: =K$33/C$33 -> -0.1538935625 | L34: =L$33/D$33 -> -0.0835386561 | M34: =M$33/E$33 -> -0.1167467499 | N34: =N$33/F$33 -> -0.1052704418
A35: 2020 Quarter 3 | B35: 16928656 | C35: 14149771 | D35: 132288990 | E35: 213235467 | F35: 376602884
A36: 2020 Quarter 4 | B36: 16904005 | C36: 13869134 | D36: 136150398 | E36: 219001013 | F36: 385924550
A37: 2021 Quarter 1 | B37: 16064193 | C37: 11471550 | D37: 124779064 | E37: 205398745 | F37: 357713552

Sheet Total Data (hidden)
A1: Location | B1: Year | C1: Tax Type | D1: NAICS | E1: Total Taxable | F1: Units
A2: Unic Is Co | B2: 2014 Quarter 1 | C2: Sales | D2: 11 | E2: 176914 | F2: 15
A3: Unic Is Co | B3: 2014 Quarter 1 | C3: Sales | D3: 21 | E3: D | F3: D
A4: Unic Is Co | B4: 2014 Quarter 1 | C4: Sales | D4: 22 | E4: 280779 | F4: 8
A5: Unic Is Co | B5: 2014 Quarter 1 | C5: Sales | D5: 23 | E5: 24733929 | F5: 885
A6: Unic Is Co | B6: 2014 Quarter 1 | C6: Sales | D6: 31 | E6: 225294 | F6: 90
A7: Unic Is Co | B7: 2014 Quarter 1 | C7: Sales | D7: 32 | E7: 910590 | F7: 84
A8: Unic Is Co | B8: 2014 Quarter 1 | C8: Sales | D8: 33 | E8: 1162225 | F8: 124
A9: Unic Is Co | B9: 2014 Quarter 1 | C9: Sales | D9: 42 | E9: 9522825 | F9: 730
A10: Unic Is Co | B10: 2014 Quarter 1 | C10: Sales | D10: 44 | E10: 16758051 | F10: 642
A11: Unic Is Co | B11: 2014 Quarter 1 | C11: Sales | D11: 45 | E11: 9724053 | F11: 769
A12: Unic Is Co | B12: 2014 Quarter 1 | C12: Sales | D12: 48 | E12: 211267 | F12: 12
A13: Unic Is Co | B13: 2014 Quarter 1 | C13: Sales | D13: 49 | E13: 5929 | F13: 4
A14: Unic Is Co | B14: 2014 Quarter 1 | C14: Sales | D14: 51 | E14: 7924398 | F14: 222
A15: Unic Is Co | B15: 2014 Quarter 1 | C15: Sales | D15: 52 | E15: 212244 | F15: 41
A16: Unic Is Co | B16: 2014 Quarter 1 | C16: Sales | D16: 53 | E16: 814498 | F16: 125
A17: Unic Is Co | B17: 2014 Quarter 1 | C17: Sales | D17: 54 | E17: 1355087 | F17: 189
A18: Unic Is Co | B18: 2014 Quarter 1 | C18: Sales | D18: 56 | E18: 3341513 | F18: 314
A19: Unic Is Co | B19: 2014 Quarter 1 | C19: Sales | D19: 61 | E19: 192201 | F19: 45
A20: Unic Is Co | B20: 2014 Quarter 1 | C20: Sales | D20: 62 | E20: 115461 | F20: 29
A21: Unic Is Co | B21: 2014 Quarter 1 | C21: Sales | D21: 71 | E21: 1389064 | F21: 40
A22: Unic Is Co | B22: 2014 Quarter 1 | C22: Sales | D22: 72 | E22: 4729181 | F22: 97
A23: Unic Is Co | B23: 2014 Quarter 1 | C23: Sales | D23: 81 | E23: 2888416 | F23: 192
A24: Unic Is Co | B24: 2014 Quarter 1 | C24: Sales | D24: 92 | E24: 45539 | F24: 6
A25: Coupeville | B25: 2014 Quarter 1 | C25: Sales | D25: 11 | E25: 13138 | F25: 3
A26: Coupeville | B26: 2014 Quarter 1 | C26: Sales | D26: 23 | E26: 1308194 | F26: 150
A27: Coupeville | B27: 2014 Quarter 1 | C27: Sales | D27: 31 | E27: 74032 | F27: 18
A28: Coupeville | B28: 2014 Quarter 1 | C28: Sales | D28: 32 | E28: 50203 | F28: 29
A29: Coupeville | B29: 2014 Quarter 1 | C29: Sales | D29: 33 | E29: 150082 | F29: 28
A30: Coupeville | B30: 2014 Quarter 1 | C30: Sales | D30: 42 | E30: 1288290 | F30: 315
A31: Coupeville | B31: 2014 Quarter 1 | C31: Sales | D31: 44 | E31: 1499059 | F31: 262
A32: Coupeville | B32: 2014 Quarter 1 | C32: Sales | D32: 45 | E32: 1082747 | F32: 354
A33: Coupeville | B33: 2014 Quarter 1 | C33: Sales | D33: 49 | E33: D | F33: D
A34: Coupeville | B34: 2014 Quarter 1 | C34: Sales | D34: 51 | E34: 644543 | F34: 113
A35: Coupeville | B35: 2014 Quarter 1 | C35: Sales | D35: 52 | E35: 63680 | F35: 25
A36: Coupeville | B36: 2014 Quarter 1 | C36: Sales | D36: 53 | E36: 87265 | F36: 50
A37: Coupeville | B37: 2014 Quarter 1 | C37: Sales | D37: 54 | E37: 387872 | F37: 83
A38: Coupeville | B38: 2014 Quarter 1 | C38: Sales | D38: 56 | E38: 310898 | F38: 92
A39: Coupeville | B39: 2014 Quarter 1 | C39: Sales | D39: 61 | E39: 9360 | F39: 16
A40: Coupeville | B40: 2014 Quarter 1 | C40: Sales | D40: 62 | E40: 116315 | F40: 9
A41: Coupeville | B41: 2014 Quarter 1 | C41: Sales | D41: 71 | E41: 77206 | F41: 7
A42: Coupeville | B42: 2014 Quarter 1 | C42: Sales | D42: 72 | E42: 1415167 | F42: 28
A43: Coupeville | B43: 2014 Quarter 1 | C43: Sales | D43: 81 | E43: 197219 | F43: 44
A44: Coupeville | B44: 2014 Quarter 1 | C44: Sales | D44: 92 | E44: 2324 | F44: 3
A45: Langley | B45: 2014 Quarter 1 | C45: Sales | D45: 11 | E45: D | F45: D
A46: Langley | B46: 2014 Quarter 1 | C46: Sales | D46: 22 | E46: D | F46: D
A47: Langley | B47: 2014 Quarter 1 | C47: Sales | D47: 23 | E47: 1306304 | F47: 119
A48: Langley | B48: 2014 Quarter 1 | C48: Sales | D48: 31 | E48: 70862 | F48: 19
A49: Langley | B49: 2014 Quarter 1 | C49: Sales | D49: 32 | E49: 47105 | F49: 22
A50: Langley | B50: 2014 Quarter 1 | C50: Sales | D50: 33 | E50: 41624 | F50: 14
A51: Langley | B51: 2014 Quarter 1 | C51: Sales | D51: 42 | E51: 985637 | F51: 238
A52: Langley | B52: 2014 Quarter 1 | C52: Sales | D52: 44 | E52: 582040 | F52: 210
A53: Langley | B53: 2014 Quarter 1 | C53: Sales | D53: 45 | E53: 1581043 | F53: 304
A54: Langley | B54: 2014 Quarter 1 | C54: Sales | D54: 48 | E54: D | F54: D
A55: Langley | B55: 2014 Quarter 1 | C55: Sales | D55: 51 | E55: 285165 | F55: 97
A56: Langley | B56: 2014 Quarter 1 | C56: Sales | D56: 52 | E56: 53648 | F56: 25
A57: Langley | B57: 2014 Quarter 1 | C57: Sales | D57: 53 | E57: 58633 | F57: 38
A58: Langley | B58: 2014 Quarter 1 | C58: Sales | D58: 54 | E58: 107977 | F58: 69
A59: Langley | B59: 2014 Quarter 1 | C59: Sales | D59: 56 | E59: 298641 | F59: 71
A60: Langley | B60: 2014 Quarter 1 | C60: Sales | D60: 61 | E60: 5865 | F60: 14
A61: Langley | B61: 2014 Quarter 1 | C61: Sales | D61: 62 | E61: 1173 | F61: 7
A62: Langley | B62: 2014 Quarter 1 | C62: Sales | D62: 71 | E62: 30494 | F62: 7
A63: Langley | B63: 2014 Quarter 1 | C63: Sales | D63: 72 | E63: 1667480 | F63: 12
A64: Langley | B64: 2014 Quarter 1 | C64: Sales | D64: 81 | E64: 273744 | F64: 43
A65: Oak Harbor | B65: 2014 Quarter 1 | C65: Sales | D65: 11 | E65: D | F65: D
A66: Oak Harbor | B66: 2014 Quarter 1 | C66: Sales | D66: 21 | E66: D | F66: D
A67: Oak Harbor | B67: 2014 Quarter 1 | C67: Sales | D67: 22 | E67: 101351 | F67: 3
A68: Oak Harbor | B68: 2014 Quarter 1 | C68: Sales | D68: 23 | E68: 5260207 | F68: 384
A69: Oak Harbor | B69: 2014 Quarter 1 | C69: Sales | D69: 31 | E69: 215978 | F69: 51
A70: Oak Harbor | B70: 2014 Quarter 1 | C70: Sales | D70: 32 | E70: 675797 | F70: 62
A71: Oak Harbor | B71: 2014 Quarter 1 | C71: Sales | D71: 33 | E71: 264533 | F71: 81
A72: Oak Harbor | B72: 2014 Quarter 1 | C72: Sales | D72: 42 | E72: 4118616 | F72: 682
A73: Oak Harbor | B73: 2014 Quarter 1 | C73: Sales | D73: 44 | E73: 22976557 | F73: 480
A74: Oak Harbor | B74: 2014 Quarter 1 | C74: Sales | D74: 45 | E74: 17429363 | F74: 674
A75: Oak Harbor | B75: 2014 Quarter 1 | C75: Sales | D75: 48 | E75: 13545 | F75: 3
A76: Oak Harbor | B76: 2014 Quarter 1 | C76: Sales | D76: 49 | E76: D | F76: D
A77: Oak Harbor | B77: 2014 Quarter 1 | C77: Sales | D77: 51 | E77: 3604496 | F77: 224
A78: Oak Harbor | B78: 2014 Quarter 1 | C78: Sales | D78: 52 | E78: 583975 | F78: 51
A79: Oak Harbor | B79: 2014 Quarter 1 | C79: Sales | D79: 53 | E79: 1389978 | F79: 113
A80: Oak Harbor | B80: 2014 Quarter 1 | C80: Sales | D80: 54 | E80: 1146350 | F80: 166
A81: Oak Harbor | B81: 2014 Quarter 1 | C81: Sales | D81: 56 | E81: 1180323 | F81: 195
A82: Oak Harbor | B82: 2014 Quarter 1 | C82: Sales | D82: 61 | E82: 114627 | F82: 37
A83: Oak Harbor | B83: 2014 Quarter 1 | C83: Sales | D83: 62 | E83: 18340 | F83: 17
A84: Oak Harbor | B84: 2014 Quarter 1 | C84: Sales | D84: 71 | E84: 759676 | F84: 16
A85: Oak Harbor | B85: 2014 Quarter 1 | C85: Sales | D85: 72 | E85: 10771963 | F85: 72
A86: Oak Harbor | B86: 2014 Quarter 1 | C86: Sales | D86: 81 | E86: 2041662 | F86: 150
A87: Oak Harbor | B87: 2014 Quarter 1 | C87: Sales | D87: 92 | E87: 16359 | F87: 4
A88: Unic Is Co | B88: 2014 Quarter 2 | C88: Sales | D88: 11 | E88: 167909 | F88: 17
A89: Unic Is Co | B89: 2014 Quarter 2 | C89: Sales | D89: 21 | E89: 51166 | F89: 3
A90: Unic Is Co | B90: 2014 Quarter 2 | C90: Sales | D90: 22 | E90: 289518 | F90: 10
A91: Unic Is Co | B91: 2014 Quarter 2 | C91: Sales | D91: 23 | E91: 26001234 | F91: 959
A92: Unic Is Co | B92: 2014 Quarter 2 | C92: Sales | D92: 31 | E92: 334957 | F92: 96
A93: Unic Is Co | B93: 2014 Quarter 2 | C93: Sales | D93: 32 | E93: 1481837 | F93: 89
A94: Unic Is Co | B94: 2014 Quarter 2 | C94: Sales | D94: 33 | E94: 584194 | F94: 131
A95: Unic Is Co | B95: 2014 Quarter 2 | C95: Sales | D95: 42 | E95: 6379630 | F95: 670
A96: Unic Is Co | B96: 2014 Quarter 2 | C96: Sales | D96: 44 | E96: 21775395 | F96: 673
A97: Unic Is Co | B97: 2014 Quarter 2 | C97: Sales | D97: 45 | E97: 9406826 | F97: 830
A98: Unic Is Co | B98: 2014 Quarter 2 | C98: Sales | D98: 48 | E98: 121095 | F98: 11
A99: Unic Is Co | B99: 2014 Quarter 2 | C99: Sales | D99: 49 | E99: 12505 | F99: 3
A100: Unic Is Co | B100: 2014 Quarter 2 | C100: Sales | D100: 51 | E100: 7751643 | F100: 203
A101: Unic Is Co | B101: 2014 Quarter 2 | C101: Sales | D101: 52 | E101: 283092 | F101: 46
A102: Unic Is Co | B102: 2014 Quarter 2 | C102: Sales | D102: 53 | E102: 1326315 | F102: 141
A103: Unic Is Co | B103: 2014 Quarter 2 | C103: Sales | D103: 54 | E103: 1640746 | F103: 199
A104: Unic Is Co | B104: 2014 Quarter 2 | C104: Sales | D104: 56 | E104: 4589078 | F104: 322
A105: Unic Is Co | B105: 2014 Quarter 2 | C105: Sales | D105: 61 | E105: 246386 | F105: 48
A106: Unic Is Co | B106: 2014 Quarter 2 | C106: Sales | D106: 62 | E106: 133740 | F106: 31
A107: Unic Is Co | B107: 2014 Quarter 2 | C107: Sales | D107: 71 | E107: 2283196 | F107: 37
A108: Unic Is Co | B108: 2014 Quarter 2 | C108: Sales | D108: 72 | E108: 6398861 | F108: 109
A109: Unic Is Co | B109: 2014 Quarter 2 | C109: Sales | D109: 81 | E109: 2972359 | F109: 174
A110: Unic Is Co | B110: 2014 Quarter 2 | C110: Sales | D110: 92 | E110: 26444 | F110: 3
A111: Coupeville | B111: 2014 Quarter 2 | C111: Sales | D111: 11 | E111: 47960 | F111: 4
A112: Coupeville | B112: 2014 Quarter 2 | C112: Sales | D112: 22 | E112: D | F112: D
A113: Coupeville | B113: 2014 Quarter 2 | C113: Sales | D113: 23 | E113: 1633220 | F113: 178
A114: Coupeville | B114: 2014 Quarter 2 | C114: Sales | D114: 31 | E114: 118034 | F114: 20
A115: Coupeville | B115: 2014 Quarter 2 | C115: Sales | D115: 32 | E115: 65831 | F115: 31
A116: Coupeville | B116: 2014 Quarter 2 | C116: Sales | D116: 33 | E116: 338766 | F116: 26
A117: Coupeville | B117: 2014 Quarter 2 | C117: Sales | D117: 42 | E117: 1237663 | F117: 327
A118: Coupeville | B118: 2014 Quarter 2 | C118: Sales | D118: 44 | E118: 1662347 | F118: 283
A119: Coupeville | B119: 2014 Quarter 2 | C119: Sales | D119: 45 | E119: 1290782 | F119: 358
A120: Coupeville | B120: 2014 Quarter 2 | C120: Sales | D120: 49 | E120: D | F120: D
A121: Coupeville | B121: 2014 Quarter 2 | C121: Sales | D121: 51 | E121: 684746 | F121: 123
A122: Coupeville | B122: 2014 Quarter 2 | C122: Sales | D122: 52 | E122: 60493 | F122: 24
A123: Coupeville | B123: 2014 Quarter 2 | C123: Sales | D123: 53 | E123: 100365 | F123: 48
A124: Coupeville | B124: 2014 Quarter 2 | C124: Sales | D124: 54 | E124: 397762 | F124: 80
A125: Coupeville | B125: 2014 Quarter 2 | C125: Sales | D125: 56 | E125: 414898 | F125: 87
A126: Coupeville | B126: 2014 Quarter 2 | C126: Sales | D126: 61 | E126: 88957 | F126: 19
A127: Coupeville | B127: 2014 Quarter 2 | C127: Sales | D127: 62 | E127: 117296 | F127: 11
A128: Coupeville | B128: 2014 Quarter 2 | C128: Sales | D128: 71 | E128: 84510 | F128: 9
A129: Coupeville | B129: 2014 Quarter 2 | C129: Sales | D129: 72 | E129: 2034103 | F129: 29
A130: Coupeville | B130: 2014 Quarter 2 | C130: Sales | D130: 81 | E130: 279555 | F130: 53
A131: Coupeville | B131: 2014 Quarter 2 | C131: Sales | D131: 92 | E131: D | F131: D
A132: Langley | B132: 2014 Quarter 2 | C132: Sales | D132: 11 | E132: D | F132: D
A133: Langley | B133: 2014 Quarter 2 | C133: Sales | D133: 22 | E133: D | F133: D
A134: Langley | B134: 2014 Quarter 2 | C134: Sales | D134: 23 | E134: 1756797 | F134: 134
A135: Langley | B135: 2014 Quarter 2 | C135: Sales | D135: 31 | E135: 103285 | F135: 17
A136: Langley | B136: 2014 Quarter 2 | C136: Sales | D136: 32 | E136: 105225 | F136: 28
A137: Langley | B137: 2014 Quarter 2 | C137: Sales | D137: 33 | E137: 40392 | F137: 22
A138: Langley | B138: 2014 Quarter 2 | C138: Sales | D138: 42 | E138: 711946 | F138: 230
A139: Langley | B139: 2014 Quarter 2 | C139: Sales | D139: 44 | E139: 665256 | F139: 230
A140: Langley | B140: 2014 Quarter 2 | C140: Sales | D140: 45 | E140: 2018143 | F140: 337
A141: Langley | B141: 2014 Quarter 2 | C141: Sales | D141: 48 | E141: D | F141: D
A142: Langley | B142: 2014 Quarter 2 | C142: Sales | D142: 51 | E142: 377120 | F142: 97
A143: Langley | B143: 2014 Quarter 2 | C143: Sales | D143: 52 | E143: 60448 | F143: 29
A144: Langley | B144: 2014 Quarter 2 | C144: Sales | D144: 53 | E144: 66766 | F144: 44
A145: Langley | B145: 2014 Quarter 2 | C145: Sales | D145: 54 | E145: 151636 | F145: 67
A146: Langley | B146: 2014 Quarter 2 | C146: Sales | D146: 56 | E146: 284378 | F146: 65
A147: Langley | B147: 2014 Quarter 2 | C147: Sales | D147: 61 | E147: 14764 | F147: 19
A148: Langley | B148: 2014 Quarter 2 | C148: Sales | D148: 62 | E148: 2422 | F148: 5
A149: Langley | B149: 2014 Quarter 2 | C149: Sales | D149: 71 | E149: 38768 | F149: 6
A150: Langley | B150: 2014 Quarter 2 | C150: Sales | D150: 72 | E150: 2373439 | F150: 14
A151: Langley | B151: 2014 Quarter 2 | C151: Sales | D151: 81 | E151: 375182 | F151: 42
A152: Langley | B152: 2014 Quarter 2 | C152: Sales | D152: 92 | E152: D | F152: D
A153: Oak Harbor | B153: 2014 Quarter 2 | C153: Sales | D153: 11 | E153: 7604 | F153: 4
A154: Oak Harbor | B154: 2014 Quarter 2 | C154: Sales | D154: 22 | E154: 173820 | F154: 3
A155: Oak Harbor | B155: 2014 Quarter 2 | C155: Sales | D155: 23 | E155: 6029851 | F155: 414
A156: Oak Harbor | B156: 2014 Quarter 2 | C156: Sales | D156: 31 | E156: 332790 | F156: 45
A157: Oak Harbor | B157: 2014 Quarter 2 | C157: Sales | D157: 32 | E157: 1027741 | F157: 74
A158: Oak Harbor | B158: 2014 Quarter 2 | C158: Sales | D158: 33 | E158: 477301 | F158: 105
A159: Oak Harbor | B159: 2014 Quarter 2 | C159: Sales | D159: 42 | E159: 4028002 | F159: 648
A160: Oak Harbor | B160: 2014 Quarter 2 | C160: Sales | D160: 44 | E160: 27745823 | F160: 501
A161: Oak Harbor | B161: 2014 Quarter 2 | C161: Sales | D161: 45 | E161: 16935654 | F161: 715
A162: Oak Harbor | B162: 2014 Quarter 2 | C162: Sales | D162: 48 | E162: 39311 | F162: 5
A163: Oak Harbor | B163: 2014 Quarter 2 | C163: Sales | D163: 49 | E163: 4809 | F163: 3
A164: Oak Harbor | B164: 2014 Quarter 2 | C164: Sales | D164: 51 | E164: 3789611 | F164: 223
A165: Oak Harbor | B165: 2014 Quarter 2 | C165: Sales | D165: 52 | E165: 786250 | F165: 56
A166: Oak Harbor | B166: 2014 Quarter 2 | C166: Sales | D166: 53 | E166: 1639305 | F166: 104
A167: Oak Harbor | B167: 2014 Quarter 2 | C167: Sales | D167: 54 | E167: 1214555 | F167: 164
A168: Oak Harbor | B168: 2014 Quarter 2 | C168: Sales | D168: 56 | E168: 1579350 | F168: 193
A169: Oak Harbor | B169: 2014 Quarter 2 | C169: Sales | D169: 61 | E169: 137978 | F169: 44
A170: Oak Harbor | B170: 2014 Quarter 2 | C170: Sales | D170: 62 | E170: 19152 | F170: 19
A171: Oak Harbor | B171: 2014 Quarter 2 | C171: Sales | D171: 71 | E171: 832482 | F171: 19
A172: Oak Harbor | B172: 2014 Quarter 2 | C172: Sales | D172: 72 | E172: 12105678 | F172: 75
A173: Oak Harbor | B173: 2014 Quarter 2 | C173: Sales | D173: 81 | E173: 2021255 | F173: 164
A174: Oak Harbor | B174: 2014 Quarter 2 | C174: Sales | D174: 92 | E174: D | F174: D
A175: Unic Is Co | B175: 2014 Quarter 3 | C175: Sales | D175: 11 | E175: 229768 | F175: 15
A176: Unic Is Co | B176: 2014 Quarter 3 | C176: Sales | D176: 21 | E176: 86391 | F176: 3
A177: Unic Is Co | B177: 2014 Quarter 3 | C177: Sales | D177: 22 | E177: 326725 | F177: 7
A178: Unic Is Co | B178: 2014 Quarter 3 | C178: Sales | D178: 23 | E178: 29544012 | F178: 993
A179: Unic Is Co | B179: 2014 Quarter 3 | C179: Sales | D179: 31 | E179: 354730 | F179: 93
A180: Unic Is Co | B180: 2014 Quarter 3 | C180: Sales | D180: 32 | E180: 1592297 | F180: 94
A181: Unic Is Co | B181: 2014 Quarter 3 | C181: Sales | D181: 33 | E181: 1171791 | F181: 137
A182: Unic Is Co | B182: 2014 Quarter 3 | C182: Sales | D182: 42 | E182: 6149173 | F182: 706
A183: Unic Is Co | B183: 2014 Quarter 3 | C183: Sales | D183: 44 | E183: 23698736 | F183: 681
A184: Unic Is Co | B184: 2014 Quarter 3 | C184: Sales | D184: 45 | E184: 10820724 | F184: 879
A185: Unic Is Co | B185: 2014 Quarter 3 | C185: Sales | D185: 48 | E185: 152612 | F185: 9
A186: Unic Is Co | B186: 2014 Quarter 3 | C186: Sales | D186: 49 | E186: D | F186: D
A187: Unic Is Co | B187: 2014 Quarter 3 | C187: Sales | D187: 51 | E187: 7433090 | F187: 234
A188: Unic Is Co | B188: 2014 Quarter 3 | C188: Sales | D188: 52 | E188: 280993 | F188: 45
A189: Unic Is Co | B189: 2014 Quarter 3 | C189: Sales | D189: 53 | E189: 2134068 | F189: 133
A190: Unic Is Co | B190: 2014 Quarter 3 | C190: Sales | D190: 54 | E190: 1636627 | F190: 194
A191: Unic Is Co | B191: 2014 Quarter 3 | C191: Sales | D191: 56 | E191: 5033781 | F191: 309
A192: Unic Is Co | B192: 2014 Quarter 3 | C192: Sales | D192: 61 | E192: 452327 | F192: 49
A193: Unic Is Co | B193: 2014 Quarter 3 | C193: Sales | D193: 62 | E193: 134473 | F193: 30
A194: Unic Is Co | B194: 2014 Quarter 3 | C194: Sales | D194: 71 | E194: 3164868 | F194: 45
A195: Unic Is Co | B195: 2014 Quarter 3 | C195: Sales | D195: 72 | E195: 8395998 | F195: 122
A196: Unic Is Co | B196: 2014 Quarter 3 | C196: Sales | D196: 81 | E196: 3022565 | F196: 185
A197: Unic Is Co | B197: 2014 Quarter 3 | C197: Sales | D197: 92 | E197: 38124 | F197: 4
A198: Coupeville | B198: 2014 Quarter 3 | C198: Sales | D198: 11 | E198: 52960 | F198: 4
A199: Coupeville | B199: 2014 Quarter 3 | C199: Sales | D199: 22 | E199: D | F199: D
A200: Coupeville | B200: 2014 Quarter 3 | C200: Sales | D200: 23 | E200: 1218272 | F200: 165
... 2816 more rows

Sheet Unic Is Co
A1: NAICS | B1: (All) | C1: =VLOOKUP(B1,NAICS!A1:B2600,2,FALSE) -> 
A3: Row Labels | B3: Sum of Total Taxable
A4: 2012 Quarter 1 | B4: 71695040
A5: 2012 Quarter 2 | B5: 79961300
A6: 2012 Quarter 3 | B6: 87413036
A7: 2012 Quarter 4 | B7: 86009221
A8: 2013 Quarter 1 | B8: 74539993
A9: 2013 Quarter 2 | B9: 89056059
A10: 2013 Quarter 3 | B10: 97270920
A11: 2013 Quarter 4 | B11: 96958026
A12: 2014 Quarter 1 | B12: 86719458
A13: 2014 Quarter 2 | B13: 94258126
A14: 2014 Quarter 3 | B14: 105853873
A15: 2014 Quarter 4 | B15: 105315571
A16: 2015 Quarter 1 | B16: 97265379
A17: 2015 Quarter 2 | B17: 112560763
A18: 2015 Quarter 3 | B18: 117678010
A19: 2015 Quarter 4 | B19: 113395164
A20: 2016 Quarter 1 | B20: 103794931
A21: 2016 Quarter 2 | B21: 121095892
A22: 2016 Quarter 3 | B22: 136129231
A23: 2016 Quarter 4 | B23: 130213240
A24: 2017 Quarter 1 | B24: 119451295
A25: 2017 Quarter 2 | B25: 145012384
A26: 2017 Quarter 3 | B26: 156299435 | E26: Amounts | F26: % Difference
A27: 2017 Quarter 4 | B27: 151012864 | D27: Median | E27: =MEDIAN(B4:B36) -> 117678010 | F27: =(B$36-E27)/E27 -> 0.3766568197
A28: 2018 Quarter 1 | B28: 138025689 | D28: Average | E28: =AVERAGE(B4:B36) -> 123809476.4 | F28: =(B$36-E28)/E28 -> 0.3084800918
A29: 2018 Quarter 2 | B29: 161181907 | D29: Minimum | E29: =MIN(B4:B36) -> 71695040 | F29: =(B$36-E29)/E29 -> 1.25960171
A30: 2018 Quarter 3 | B30: 170380580 | D30: Maximum | E30: =MAX(B4:B36) -> 192719796 | F30: =(B$36-E30)/E30 -> -0.1593897546
A31: 2018 Quarter 4 | B31: 168591123 | D31: Yr Over Yr | E31: =B36-B32 -> 13952822 | F31: =E31/B36 -> 0.08612734263
A32: 2019 Quarter 1 | B32: 148049413
A33: 2019 Quarter 2 | B33: 183790832
A34: 2019 Quarter 3 | B34: 192719796
A35: 2019 Quarter 4 | B35: 182011934
A36: 2020 Quarter 1 | B36: 162002235

Sheet Unic Is Co Data (hidden)
A1: Year | B1: Tax Type | C1: NAICS | D1: Total Taxable | E1: Units
A2: 2014 Quarter 1 | B2: Sales | C2: 11 | D2: 176914 | E2: 15
A3: 2014 Quarter 1 | B3: Sales | C3: 21 | D3: D | E3: D
A4: 2014 Quarter 1 | B4: Sales | C4: 22 | D4: 280779 | E4: 8
A5: 2014 Quarter 1 | B5: Sales | C5: 23 | D5: 24733929 | E5: 885
A6: 2014 Quarter 1 | B6: Sales | C6: 31 | D6: 225294 | E6: 90
A7: 2014 Quarter 1 | B7: Sales | C7: 32 | D7: 910590 | E7: 84
A8: 2014 Quarter 1 | B8: Sales | C8: 33 | D8: 1162225 | E8: 124
A9: 2014 Quarter 1 | B9: Sales | C9: 42 | D9: 9522825 | E9: 730
A10: 2014 Quarter 1 | B10: Sales | C10: 44 | D10: 16758051 | E10: 642
A11: 2014 Quarter 1 | B11: Sales | C11: 45 | D11: 9724053 | E11: 769
A12: 2014 Quarter 1 | B12: Sales | C12: 48 | D12: 211267 | E12: 12
A13: 2014 Quarter 1 | B13: Sales | C13: 49 | D13: 5929 | E13: 4
A14: 2014 Quarter 1 | B14: Sales | C14: 51 | D14: 7924398 | E14: 222
A15: 2014 Quarter 1 | B15: Sales | C15: 52 | D15: 212244 | E15: 41
A16: 2014 Quarter 1 | B16: Sales | C16: 53 | D16: 814498 | E16: 125
A17: 2014 Quarter 1 | B17: Sales | C17: 54 | D17: 1355087 | E17: 189
A18: 2014 Quarter 1 | B18: Sales | C18: 56 | D18: 3341513 | E18: 314
A19: 2014 Quarter 1 | B19: Sales | C19: 61 | D19: 192201 | E19: 45
A20: 2014 Quarter 1 | B20: Sales | C20: 62 | D20: 115461 | E20: 29
A21: 2014 Quarter 1 | B21: Sales | C21: 71 | D21: 1389064 | E21: 40
A22: 2014 Quarter 1 | B22: Sales | C22: 72 | D22: 4729181 | E22: 97
A23: 2014 Quarter 1 | B23: Sales | C23: 81 | D23: 2888416 | E23: 192
A24: 2014 Quarter 1 | B24: Sales | C24: 92 | D24: 45539 | E24: 6
A25: 2014 Quarter 2 | B25: Sales | C25: 11 | D25: 167909 | E25: 17
A26: 2014 Quarter 2 | B26: Sales | C26: 21 | D26: 51166 | E26: 3
A27: 2014 Quarter 2 | B27: Sales | C27: 22 | D27: 289518 | E27: 10
A28: 2014 Quarter 2 | B28: Sales | C28: 23 | D28: 26001234 | E28: 959
A29: 2014 Quarter 2 | B29: Sales | C29: 31 | D29: 334957 | E29: 96
A30: 2014 Quarter 2 | B30: Sales | C30: 32 | D30: 1481837 | E30: 89
A31: 2014 Quarter 2 | B31: Sales | C31: 33 | D31: 584194 | E31: 131
A32: 2014 Quarter 2 | B32: Sales | C32: 42 | D32: 6379630 | E32: 670
A33: 2014 Quarter 2 | B33: Sales | C33: 44 | D33: 21775395 | E33: 673
A34: 2014 Quarter 2 | B34: Sales | C34: 45 | D34: 9406826 | E34: 830
A35: 2014 Quarter 2 | B35: Sales | C35: 48 | D35: 121095 | E35: 11
A36: 2014 Quarter 2 | B36: Sales | C36: 49 | D36: 12505 | E36: 3
A37: 2014 Quarter 2 | B37: Sales | C37: 51 | D37: 7751643 | E37: 203
A38: 2014 Quarter 2 | B38: Sales | C38: 52 | D38: 283092 | E38: 46
A39: 2014 Quarter 2 | B39: Sales | C39: 53 | D39: 1326315 | E39: 141
A40: 2014 Quarter 2 | B40: Sales | C40: 54 | D40: 1640746 | E40: 199
A41: 2014 Quarter 2 | B41: Sales | C41: 56 | D41: 4589078 | E41: 322
A42: 2014 Quarter 2 | B42: Sales | C42: 61 | D42: 246386 | E42: 48
A43: 2014 Quarter 2 | B43: Sales | C43: 62 | D43: 133740 | E43: 31
A44: 2014 Quarter 2 | B44: Sales | C44: 71 | D44: 2283196 | E44: 37
A45: 2014 Quarter 2 | B45: Sales | C45: 72 | D45: 6398861 | E45: 109
A46: 2014 Quarter 2 | B46: Sales | C46: 81 | D46: 2972359 | E46: 174
A47: 2014 Quarter 2 | B47: Sales | C47: 92 | D47: 26444 | E47: 3
A48: 2014 Quarter 3 | B48: Sales | C48: 11 | D48: 229768 | E48: 15
A49: 2014 Quarter 3 | B49: Sales | C49: 21 | D49: 86391 | E49: 3
A50: 2014 Quarter 3 | B50: Sales | C50: 22 | D50: 326725 | E50: 7
A51: 2014 Quarter 3 | B51: Sales | C51: 23 | D51: 29544012 | E51: 993
A52: 2014 Quarter 3 | B52: Sales | C52: 31 | D52: 354730 | E52: 93
A53: 2014 Quarter 3 | B53: Sales | C53: 32 | D53: 1592297 | E53: 94
A54: 2014 Quarter 3 | B54: Sales | C54: 33 | D54: 1171791 | E54: 137
A55: 2014 Quarter 3 | B55: Sales | C55: 42 | D55: 6149173 | E55: 706
A56: 2014 Quarter 3 | B56: Sales | C56: 44 | D56: 23698736 | E56: 681
A57: 2014 Quarter 3 | B57: Sales | C57: 45 | D57: 10820724 | E57: 879
A58: 2014 Quarter 3 | B58: Sales | C58: 48 | D58: 152612 | E58: 9
A59: 2014 Quarter 3 | B59: Sales | C59: 49 | D59: D | E59: D
A60: 2014 Quarter 3 | B60: Sales | C60: 51 | D60: 7433090 | E60: 234
A61: 2014 Quarter 3 | B61: Sales | C61: 52 | D61: 280993 | E61: 45
A62: 2014 Quarter 3 | B62: Sales | C62: 53 | D62: 2134068 | E62: 133
A63: 2014 Quarter 3 | B63: Sales | C63: 54 | D63: 1636627 | E63: 194
A64: 2014 Quarter 3 | B64: Sales | C64: 56 | D64: 5033781 | E64: 309
A65: 2014 Quarter 3 | B65: Sales | C65: 61 | D65: 452327 | E65: 49
A66: 2014 Quarter 3 | B66: Sales | C66: 62 | D66: 134473 | E66: 30
A67: 2014 Quarter 3 | B67: Sales | C67: 71 | D67: 3164868 | E67: 45
A68: 2014 Quarter 3 | B68: Sales | C68: 72 | D68: 8395998 | E68: 122
A69: 2014 Quarter 3 | B69: Sales | C69: 81 | D69: 3022565 | E69: 185
A70: 2014 Quarter 3 | B70: Sales | C70: 92 | D70: 38124 | E70: 4
A71: 2014 Quarter 4 | B71: Sales | C71: 11 | D71: 311256 | E71: 41
A72: 2014 Quarter 4 | B72: Sales | C72: 21 | D72: D | E72: D
A73: 2014 Quarter 4 | B73: Sales | C73: 22 | D73: 316346 | E73: 6
A74: 2014 Quarter 4 | B74: Sales | C74: 23 | D74: 31730407 | E74: 1045
A75: 2014 Quarter 4 | B75: Sales | C75: 31 | D75: 339733 | E75: 139
A76: 2014 Quarter 4 | B76: Sales | C76: 32 | D76: 1254524 | E76: 116
A77: 2014 Quarter 4 | B77: Sales | C77: 33 | D77: 891515 | E77: 171
A78: 2014 Quarter 4 | B78: Sales | C78: 42 | D78: 7440942 | E78: 792
A79: 2014 Quarter 4 | B79: Sales | C79: 44 | D79: 20210010 | E79: 771
A80: 2014 Quarter 4 | B80: Sales | C80: 45 | D80: 13962090 | E80: 1272
A81: 2014 Quarter 4 | B81: Sales | C81: 48 | D81: 270642 | E81: 17
A82: 2014 Quarter 4 | B82: Sales | C82: 49 | D82: 21743 | E82: 6
A83: 2014 Quarter 4 | B83: Sales | C83: 51 | D83: 7944637 | E83: 255
A84: 2014 Quarter 4 | B84: Sales | C84: 52 | D84: 382061 | E84: 49
A85: 2014 Quarter 4 | B85: Sales | C85: 53 | D85: 1585456 | E85: 161
A86: 2014 Quarter 4 | B86: Sales | C86: 54 | D86: 1733846 | E86: 305
A87: 2014 Quarter 4 | B87: Sales | C87: 55 | D87: D | E87: D
A88: 2014 Quarter 4 | B88: Sales | C88: 56 | D88: 5087911 | E88: 409
A89: 2014 Quarter 4 | B89: Sales | C89: 61 | D89: 229931 | E89: 60
A90: 2014 Quarter 4 | B90: Sales | C90: 62 | D90: 174537 | E90: 37
A91: 2014 Quarter 4 | B91: Sales | C91: 71 | D91: 1522594 | E91: 116
A92: 2014 Quarter 4 | B92: Sales | C92: 72 | D92: 6423520 | E92: 163
A93: 2014 Quarter 4 | B93: Sales | C93: 81 | D93: 3440377 | E93: 238
A94: 2014 Quarter 4 | B94: Sales | C94: 92 | D94: 41493 | E94: 3
A95: 2015 Quarter 1 | B95: Sales | C95: 11 | D95: 153143 | E95: 15
A96: 2015 Quarter 1 | B96: Sales | C96: 21 | D96: 33610 | E96: 4
A97: 2015 Quarter 1 | B97: Sales | C97: 22 | D97: 262115 | E97: 9
A98: 2015 Quarter 1 | B98: Sales | C98: 23 | D98: 31974473 | E98: 937
A99: 2015 Quarter 1 | B99: Sales | C99: 31 | D99: 200426 | E99: 97
A100: 2015 Quarter 1 | B100: Sales | C100: 32 | D100: 1487386 | E100: 88
A101: 2015 Quarter 1 | B101: Sales | C101: 33 | D101: 734031 | E101: 125
A102: 2015 Quarter 1 | B102: Sales | C102: 42 | D102: 7808019 | E102: 730
A103: 2015 Quarter 1 | B103: Sales | C103: 44 | D103: 19278844 | E103: 683
A104: 2015 Quarter 1 | B104: Sales | C104: 45 | D104: 9688093 | E104: 895
A105: 2015 Quarter 1 | B105: Sales | C105: 48 | D105: 194150 | E105: 12
A106: 2015 Quarter 1 | B106: Sales | C106: 49 | D106: D | E106: D
A107: 2015 Quarter 1 | B107: Sales | C107: 51 | D107: 7539275 | E107: 219
A108: 2015 Quarter 1 | B108: Sales | C108: 52 | D108: 295246 | E108: 39
A109: 2015 Quarter 1 | B109: Sales | C109: 53 | D109: 1206250 | E109: 127
A110: 2015 Quarter 1 | B110: Sales | C110: 54 | D110: 1491320 | E110: 195
A111: 2015 Quarter 1 | B111: Sales | C111: 55 | D111: D | E111: D
A112: 2015 Quarter 1 | B112: Sales | C112: 56 | D112: 4747157 | E112: 317
A113: 2015 Quarter 1 | B113: Sales | C113: 61 | D113: 227118 | E113: 50
A114: 2015 Quarter 1 | B114: Sales | C114: 62 | D114: 141782 | E114: 30
A115: 2015 Quarter 1 | B115: Sales | C115: 71 | D115: 1349155 | E115: 35
A116: 2015 Quarter 1 | B116: Sales | C116: 72 | D116: 5654305 | E116: 102
A117: 2015 Quarter 1 | B117: Sales | C117: 81 | D117: 2766935 | E117: 170
A118: 2015 Quarter 1 | B118: Sales | C118: 92 | D118: 32546 | E118: 4
A119: 2015 Quarter 2 | B119: Sales | C119: 11 | D119: 139558 | E119: 17
A120: 2015 Quarter 2 | B120: Sales | C120: 21 | D120: 46421 | E120: 4
A121: 2015 Quarter 2 | B121: Sales | C121: 22 | D121: 254735 | E121: 6
A122: 2015 Quarter 2 | B122: Sales | C122: 23 | D122: 35579016 | E122: 1015
A123: 2015 Quarter 2 | B123: Sales | C123: 31 | D123: 378144 | E123: 103
A124: 2015 Quarter 2 | B124: Sales | C124: 32 | D124: 1792079 | E124: 82
A125: 2015 Quarter 2 | B125: Sales | C125: 33 | D125: 874286 | E125: 141
A126: 2015 Quarter 2 | B126: Sales | C126: 42 | D126: 6559811 | E126: 741
A127: 2015 Quarter 2 | B127: Sales | C127: 44 | D127: 24675518 | E127: 741
A128: 2015 Quarter 2 | B128: Sales | C128: 45 | D128: 10210007 | E128: 928
A129: 2015 Quarter 2 | B129: Sales | C129: 48 | D129: 197807 | E129: 15
A130: 2015 Quarter 2 | B130: Sales | C130: 49 | D130: D | E130: D
A131: 2015 Quarter 2 | B131: Sales | C131: 51 | D131: 7860432 | E131: 220
A132: 2015 Quarter 2 | B132: Sales | C132: 52 | D132: 378859 | E132: 44
A133: 2015 Quarter 2 | B133: Sales | C133: 53 | D133: 1486053 | E133: 141
A134: 2015 Quarter 2 | B134: Sales | C134: 54 | D134: 1829065 | E134: 216
A135: 2015 Quarter 2 | B135: Sales | C135: 55 | D135: D | E135: D
A136: 2015 Quarter 2 | B136: Sales | C136: 56 | D136: 6919882 | E136: 345
A137: 2015 Quarter 2 | B137: Sales | C137: 61 | D137: 359202 | E137: 49
A138: 2015 Quarter 2 | B138: Sales | C138: 62 | D138: 152295 | E138: 29
A139: 2015 Quarter 2 | B139: Sales | C139: 71 | D139: 2362784 | E139: 37
A140: 2015 Quarter 2 | B140: Sales | C140: 72 | D140: 7416681 | E140: 117
A141: 2015 Quarter 2 | B141: Sales | C141: 81 | D141: 3033978 | E141: 190
A142: 2015 Quarter 2 | B142: Sales | C142: 92 | D142: 54150 | E142: 3
A143: 2015 Quarter 3 | B143: Sales | C143: 11 | D143: 311531 | E143: 18
A144: 2015 Quarter 3 | B144: Sales | C144: 21 | D144: 37619 | E144: 4
A145: 2015 Quarter 3 | B145: Sales | C145: 22 | D145: 214636 | E145: 6
A146: 2015 Quarter 3 | B146: Sales | C146: 23 | D146: 35179981 | E146: 1068
A147: 2015 Quarter 3 | B147: Sales | C147: 31 | D147: 390558 | E147: 96
A148: 2015 Quarter 3 | B148: Sales | C148: 32 | D148: 1678447 | E148: 79
A149: 2015 Quarter 3 | B149: Sales | C149: 33 | D149: 719618 | E149: 148
A150: 2015 Quarter 3 | B150: Sales | C150: 42 | D150: 7068071 | E150: 788
A151: 2015 Quarter 3 | B151: Sales | C151: 44 | D151: 25819593 | E151: 733
A152: 2015 Quarter 3 | B152: Sales | C152: 45 | D152: 10498984 | E152: 953
A153: 2015 Quarter 3 | B153: Sales | C153: 48 | D153: 183343 | E153: 12
A154: 2015 Quarter 3 | B154: Sales | C154: 49 | D154: D | E154: D
A155: 2015 Quarter 3 | B155: Sales | C155: 51 | D155: 8293268 | E155: 240
A156: 2015 Quarter 3 | B156: Sales | C156: 52 | D156: 401191 | E156: 56
A157: 2015 Quarter 3 | B157: Sales | C157: 53 | D157: 2415917 | E157: 142
A158: 2015 Quarter 3 | B158: Sales | C158: 54 | D158: 1784351 | E158: 202
A159: 2015 Quarter 3 | B159: Sales | C159: 55 | D159: D | E159: D
A160: 2015 Quarter 3 | B160: Sales | C160: 56 | D160: 6998928 | E160: 344
A161: 2015 Quarter 3 | B161: Sales | C161: 61 | D161: 578717 | E161: 54
A162: 2015 Quarter 3 | B162: Sales | C162: 62 | D162: 149147 | E162: 29
A163: 2015 Quarter 3 | B163: Sales | C163: 71 | D163: 3050533 | E163: 38
A164: 2015 Quarter 3 | B164: Sales | C164: 72 | D164: 9016344 | E164: 120
A165: 2015 Quarter 3 | B165: Sales | C165: 81 | D165: 2844755 | E165: 176
A166: 2015 Quarter 3 | B166: Sales | C166: 92 | D166: 42478 | E166: 5
A167: 2015 Quarter 4 | B167: Sales | C167: 11 | D167: 390901 | E167: 41
A168: 2015 Quarter 4 | B168: Sales | C168: 21 | D168: 52092 | E168: 6
A169: 2015 Quarter 4 | B169: Sales | C169: 22 | D169: 220316 | E169: 4
A170: 2015 Quarter 4 | B170: Sales | C170: 23 | D170: 33662794 | E170: 1086
A171: 2015 Quarter 4 | B171: Sales | C171: 31 | D171: 370751 | E171: 139
A172: 2015 Quarter 4 | B172: Sales | C172: 32 | D172: 1709988 | E172: 113
A173: 2015 Quarter 4 | B173: Sales | C173: 33 | D173: 751183 | E173: 190
A174: 2015 Quarter 4 | B174: Sales | C174: 42 | D174: 7843381 | E174: 837
A175: 2015 Quarter 4 | B175: Sales | C175: 44 | D175: 22433903 | E175: 926
A176: 2015 Quarter 4 | B176: Sales | C176: 45 | D176: 13510971 | E176: 1442
A177: 2015 Quarter 4 | B177: Sales | C177: 48 | D177: 188030 | E177: 21
A178: 2015 Quarter 4 | B178: Sales | C178: 49 | D178: 21663 | E178: 3
A179: 2015 Quarter 4 | B179: Sales | C179: 51 | D179: 8470732 | E179: 258
A180: 2015 Quarter 4 | B180: Sales | C180: 52 | D180: 454781 | E180: 53
A181: 2015 Quarter 4 | B181: Sales | C181: 53 | D181: 2223757 | E181: 174
A182: 2015 Quarter 4 | B182: Sales | C182: 54 | D182: 1988594 | E182: 331
A183: 2015 Quarter 4 | B183: Sales | C183: 55 | D183: D | E183: D
A184: 2015 Quarter 4 | B184: Sales | C184: 56 | D184: 6701102 | E184: 406
A185: 2015 Quarter 4 | B185: Sales | C185: 61 | D185: 301694 | E185: 68
A186: 2015 Quarter 4 | B186: Sales | C186: 62 | D186: 169093 | E186: 36
A187: 2015 Quarter 4 | B187: Sales | C187: 71 | D187: 1541702 | E187: 108
A188: 2015 Quarter 4 | B188: Sales | C188: 72 | D188: 6820425 | E188: 177
A189: 2015 Quarter 4 | B189: Sales | C189: 81 | D189: 3512230 | E189: 245
A190: 2015 Quarter 4 | B190: Sales | C190: 92 | D190: 55081 | E190: 5
A191: 2016 Quarter 1 | B191: Sales | C191: 11 | D191: 274158 | E191: 19
A192: 2016 Quarter 1 | B192: Sales | C192: 21 | D192: D | E192: D
A193: 2016 Quarter 1 | B193: Sales | C193: 22 | D193: 154602 | E193: 5
A194: 2016 Quarter 1 | B194: Sales | C194: 23 | D194: 32755657 | E194: 996
A195: 2016 Quarter 1 | B195: Sales | C195: 31 | D195: 268839 | E195: 102
A196: 2016 Quarter 1 | B196: Sales | C196: 32 | D196: 1422337 | E196: 92
A197: 2016 Quarter 1 | B197: Sales | C197: 33 | D197: 1010896 | E197: 153
A198: 2016 Quarter 1 | B198: Sales | C198: 42 | D198: 8289863 | E198: 763
A199: 2016 Quarter 1 | B199: Sales | C199: 44 | D199: 21057168 | E199: 802
A200: 2016 Quarter 1 | B200: Sales | C200: 45 | D200: 10221308 | E200: 962
... 592 more rows

Sheet Coupeville
A1: NAICS | B1: (All) | C1: =VLOOKUP(B1,NAICS!A1:B2604,2,FALSE) -> 
A3: Row Labels | B3: Sum of Total Taxable
A4: 2014 Quarter 1 | B4: 8777594
A5: 2014 Quarter 2 | B5: 10657288
A6: 2014 Quarter 3 | B6: 11924741
A7: 2014 Quarter 4 | B7: 10237937
A8: 2015 Quarter 1 | B8: 9519402
A9: 2015 Quarter 2 | B9: 11073628
A10: 2015 Quarter 3 | B10: 12691867
A11: 2015 Quarter 4 | B11: 14284608
A12: 2016 Quarter 1 | B12: 15076444
A13: 2016 Quarter 2 | B13: 16452080
A14: 2016 Quarter 3 | B14: 18081679
A15: 2016 Quarter 4 | B15: 17726155
A16: 2017 Quarter 1 | B16: 19355964
A17: 2017 Quarter 2 | B17: 19011181
A18: 2017 Quarter 3 | B18: 17093582
A19: 2017 Quarter 4 | B19: 14179705
A20: 2018 Quarter 1 | B20: 13911536
A21: 2018 Quarter 2 | B21: 16990270
A22: 2018 Quarter 3 | B22: 17830355
A23: 2018 Quarter 4 | B23: 17887550
A24: 2019 Quarter 1 | B24: 14677218
A25: 2019 Quarter 2 | B25: 15736306
A26: 2019 Quarter 3 | B26: 17164628
A27: 2019 Quarter 4 | B27: 15728175 | E27: Amounts | F27: % Difference
A28: 2020 Quarter 1 | B28: 13036976 | D28: Median | E28: =MEDIAN(B4:B34) -> 15736306 | F28: =(B$36-E28)/E28 -> 0.1147236207
A29: 2020 Quarter 2 | B29: 12809076 | D29: Average | E29: =AVERAGE(B4:B34) -> 15235459.94 | F29: =(B$34-E29)/E29 -> 0.3912064414
A30: 2020 Quarter 3 | B30: 16928656 | D30: Minimum | E30: =MIN(B4:B34) -> 8777594 | F30: =(B$34-E30)/E30 -> 1.414747139
A31: 2020 Quarter 4 | B31: 16904005 | D31: Maximum | E31: =MAX(B4:B34) -> 21195670 | F31: =(B$34-E31)/E31 -> 0
A32: 2021 Quarter 1 | B32: 16064193 | D32: Yr Over Yr | E32: =B34-B30 -> 4267014 | F32: =E32/B30 -> 0.2520586395
A33: 2021 Quarter 2 | B33: 19290789
A34: 2021 Quarter 3 | B34: 21195670
A35: 2021 Quarter 4 | B35: 18631063
A36: 2022 Quarter 1 | B36: 17541632

Sheet Coupeville Data (hidden)
A1: Year | B1: Tax Type | C1: NAICS | D1: Total Taxable | E1: Units
A2: 2014 Quarter 1 | B2: Sales | C2: 11 | D2: 13138 | E2: 3
A3: 2014 Quarter 1 | B3: Sales | C3: 23 | D3: 1308194 | E3: 150
A4: 2014 Quarter 1 | B4: Sales | C4: 31 | D4: 74032 | E4: 18
A5: 2014 Quarter 1 | B5: Sales | C5: 32 | D5: 50203 | E5: 29
A6: 2014 Quarter 1 | B6: Sales | C6: 33 | D6: 150082 | E6: 28
A7: 2014 Quarter 1 | B7: Sales | C7: 42 | D7: 1288290 | E7: 315
A8: 2014 Quarter 1 | B8: Sales | C8: 44 | D8: 1499059 | E8: 262
A9: 2014 Quarter 1 | B9: Sales | C9: 45 | D9: 1082747 | E9: 354
A10: 2014 Quarter 1 | B10: Sales | C10: 49 | D10: D | E10: D
A11: 2014 Quarter 1 | B11: Sales | C11: 51 | D11: 644543 | E11: 113
A12: 2014 Quarter 1 | B12: Sales | C12: 52 | D12: 63680 | E12: 25
A13: 2014 Quarter 1 | B13: Sales | C13: 53 | D13: 87265 | E13: 50
A14: 2014 Quarter 1 | B14: Sales | C14: 54 | D14: 387872 | E14: 83
A15: 2014 Quarter 1 | B15: Sales | C15: 56 | D15: 310898 | E15: 92
A16: 2014 Quarter 1 | B16: Sales | C16: 61 | D16: 9360 | E16: 16
A17: 2014 Quarter 1 | B17: Sales | C17: 62 | D17: 116315 | E17: 9
A18: 2014 Quarter 1 | B18: Sales | C18: 71 | D18: 77206 | E18: 7
A19: 2014 Quarter 1 | B19: Sales | C19: 72 | D19: 1415167 | E19: 28
A20: 2014 Quarter 1 | B20: Sales | C20: 81 | D20: 197219 | E20: 44
A21: 2014 Quarter 1 | B21: Sales | C21: 92 | D21: 2324 | E21: 3
A22: 2014 Quarter 2 | B22: Sales | C22: 11 | D22: 47960 | E22: 4
A23: 2014 Quarter 2 | B23: Sales | C23: 22 | D23: D | E23: D
A24: 2014 Quarter 2 | B24: Sales | C24: 23 | D24: 1633220 | E24: 178
A25: 2014 Quarter 2 | B25: Sales | C25: 31 | D25: 118034 | E25: 20
A26: 2014 Quarter 2 | B26: Sales | C26: 32 | D26: 65831 | E26: 31
A27: 2014 Quarter 2 | B27: Sales | C27: 33 | D27: 338766 | E27: 26
A28: 2014 Quarter 2 | B28: Sales | C28: 42 | D28: 1237663 | E28: 327
A29: 2014 Quarter 2 | B29: Sales | C29: 44 | D29: 1662347 | E29: 283
A30: 2014 Quarter 2 | B30: Sales | C30: 45 | D30: 1290782 | E30: 358
A31: 2014 Quarter 2 | B31: Sales | C31: 49 | D31: D | E31: D
A32: 2014 Quarter 2 | B32: Sales | C32: 51 | D32: 684746 | E32: 123
A33: 2014 Quarter 2 | B33: Sales | C33: 52 | D33: 60493 | E33: 24
A34: 2014 Quarter 2 | B34: Sales | C34: 53 | D34: 100365 | E34: 48
A35: 2014 Quarter 2 | B35: Sales | C35: 54 | D35: 397762 | E35: 80
A36: 2014 Quarter 2 | B36: Sales | C36: 56 | D36: 414898 | E36: 87
A37: 2014 Quarter 2 | B37: Sales | C37: 61 | D37: 88957 | E37: 19
A38: 2014 Quarter 2 | B38: Sales | C38: 62 | D38: 117296 | E38: 11
A39: 2014 Quarter 2 | B39: Sales | C39: 71 | D39: 84510 | E39: 9
A40: 2014 Quarter 2 | B40: Sales | C40: 72 | D40: 2034103 | E40: 29
A41: 2014 Quarter 2 | B41: Sales | C41: 81 | D41: 279555 | E41: 53
A42: 2014 Quarter 2 | B42: Sales | C42: 92 | D42: D | E42: D
A43: 2014 Quarter 3 | B43: Sales | C43: 11 | D43: 52960 | E43: 4
A44: 2014 Quarter 3 | B44: Sales | C44: 22 | D44: D | E44: D
A45: 2014 Quarter 3 | B45: Sales | C45: 23 | D45: 1218272 | E45: 165
A46: 2014 Quarter 3 | B46: Sales | C46: 31 | D46: 185174 | E46: 19
A47: 2014 Quarter 3 | B47: Sales | C47: 32 | D47: 123153 | E47: 32
A48: 2014 Quarter 3 | B48: Sales | C48: 33 | D48: 132812 | E48: 40
A49: 2014 Quarter 3 | B49: Sales | C49: 42 | D49: 1215657 | E49: 334
A50: 2014 Quarter 3 | B50: Sales | C50: 44 | D50: 1987283 | E50: 285
A51: 2014 Quarter 3 | B51: Sales | C51: 45 | D51: 1514636 | E51: 386
A52: 2014 Quarter 3 | B52: Sales | C52: 51 | D52: 876629 | E52: 121
A53: 2014 Quarter 3 | B53: Sales | C53: 52 | D53: 44648 | E53: 25
A54: 2014 Quarter 3 | B54: Sales | C54: 53 | D54: 137286 | E54: 46
A55: 2014 Quarter 3 | B55: Sales | C55: 54 | D55: 534328 | E55: 80
A56: 2014 Quarter 3 | B56: Sales | C56: 56 | D56: 450560 | E56: 80
A57: 2014 Quarter 3 | B57: Sales | C57: 61 | D57: 16074 | E57: 19
A58: 2014 Quarter 3 | B58: Sales | C58: 62 | D58: 121602 | E58: 11
A59: 2014 Quarter 3 | B59: Sales | C59: 71 | D59: 118867 | E59: 14
A60: 2014 Quarter 3 | B60: Sales | C60: 72 | D60: 2969594 | E60: 29
A61: 2014 Quarter 3 | B61: Sales | C61: 81 | D61: 225206 | E61: 51
A62: 2014 Quarter 3 | B62: Sales | C62: 92 | D62: D | E62: D
A63: 2014 Quarter 4 | B63: Sales | C63: 11 | D63: 72255 | E63: 7
A64: 2014 Quarter 4 | B64: Sales | C64: 21 | D64: D | E64: D
A65: 2014 Quarter 4 | B65: Sales | C65: 22 | D65: D | E65: D
A66: 2014 Quarter 4 | B66: Sales | C66: 23 | D66: 1266257 | E66: 150
A67: 2014 Quarter 4 | B67: Sales | C67: 31 | D67: 110310 | E67: 30
A68: 2014 Quarter 4 | B68: Sales | C68: 32 | D68: 113415 | E68: 40
A69: 2014 Quarter 4 | B69: Sales | C69: 33 | D69: 121473 | E69: 35
A70: 2014 Quarter 4 | B70: Sales | C70: 42 | D70: 1277882 | E70: 350
A71: 2014 Quarter 4 | B71: Sales | C71: 44 | D71: 1748419 | E71: 308
A72: 2014 Quarter 4 | B72: Sales | C72: 45 | D72: 1519120 | E72: 487
A73: 2014 Quarter 4 | B73: Sales | C73: 48 | D73: 8223 | E73: 3
A74: 2014 Quarter 4 | B74: Sales | C74: 49 | D74: D | E74: D
A75: 2014 Quarter 4 | B75: Sales | C75: 51 | D75: 675418 | E75: 136
A76: 2014 Quarter 4 | B76: Sales | C76: 52 | D76: 51060 | E76: 24
A77: 2014 Quarter 4 | B77: Sales | C77: 53 | D77: 99146 | E77: 45
A78: 2014 Quarter 4 | B78: Sales | C78: 54 | D78: 519505 | E78: 108
A79: 2014 Quarter 4 | B79: Sales | C79: 56 | D79: 553526 | E79: 111
A80: 2014 Quarter 4 | B80: Sales | C80: 61 | D80: 25391 | E80: 18
A81: 2014 Quarter 4 | B81: Sales | C81: 62 | D81: 121750 | E81: 12
A82: 2014 Quarter 4 | B82: Sales | C82: 71 | D82: 103830 | E82: 23
A83: 2014 Quarter 4 | B83: Sales | C83: 72 | D83: 1560917 | E83: 35
A84: 2014 Quarter 4 | B84: Sales | C84: 81 | D84: 288555 | E84: 64
A85: 2014 Quarter 4 | B85: Sales | C85: 92 | D85: 1485 | E85: 3
A86: 2015 Quarter 1 | B86: Sales | C86: 11 | D86: 34084 | E86: 6
A87: 2015 Quarter 1 | B87: Sales | C87: 21 | D87: D | E87: D
A88: 2015 Quarter 1 | B88: Sales | C88: 22 | D88: D | E88: D
A89: 2015 Quarter 1 | B89: Sales | C89: 23 | D89: 1141616 | E89: 144
A90: 2015 Quarter 1 | B90: Sales | C90: 31 | D90: 77714 | E90: 19
A91: 2015 Quarter 1 | B91: Sales | C91: 32 | D91: 64444 | E91: 29
A92: 2015 Quarter 1 | B92: Sales | C92: 33 | D92: 111690 | E92: 26
A93: 2015 Quarter 1 | B93: Sales | C93: 42 | D93: 1680930 | E93: 324
A94: 2015 Quarter 1 | B94: Sales | C94: 44 | D94: 1572245 | E94: 289
A95: 2015 Quarter 1 | B95: Sales | C95: 45 | D95: 1107140 | E95: 381
A96: 2015 Quarter 1 | B96: Sales | C96: 51 | D96: 670678 | E96: 126
A97: 2015 Quarter 1 | B97: Sales | C97: 52 | D97: 67522 | E97: 29
A98: 2015 Quarter 1 | B98: Sales | C98: 53 | D98: 143528 | E98: 47
A99: 2015 Quarter 1 | B99: Sales | C99: 54 | D99: 569446 | E99: 90
A100: 2015 Quarter 1 | B100: Sales | C100: 56 | D100: 276041 | E100: 85
A101: 2015 Quarter 1 | B101: Sales | C101: 61 | D101: 13649 | E101: 23
A102: 2015 Quarter 1 | B102: Sales | C102: 62 | D102: 125846 | E102: 14
A103: 2015 Quarter 1 | B103: Sales | C103: 71 | D103: 49517 | E103: 8
A104: 2015 Quarter 1 | B104: Sales | C104: 72 | D104: 1589173 | E104: 30
A105: 2015 Quarter 1 | B105: Sales | C105: 81 | D105: 222744 | E105: 49
A106: 2015 Quarter 1 | B106: Sales | C106: 92 | D106: 1395 | E106: 3
A107: 2015 Quarter 2 | B107: Sales | C107: 11 | D107: 99491 | E107: 6
A108: 2015 Quarter 2 | B108: Sales | C108: 22 | D108: D | E108: D
A109: 2015 Quarter 2 | B109: Sales | C109: 23 | D109: 1164227 | E109: 152
A110: 2015 Quarter 2 | B110: Sales | C110: 31 | D110: 149518 | E110: 20
A111: 2015 Quarter 2 | B111: Sales | C111: 32 | D111: 136312 | E111: 36
A112: 2015 Quarter 2 | B112: Sales | C112: 33 | D112: 58518 | E112: 28
A113: 2015 Quarter 2 | B113: Sales | C113: 42 | D113: 1429101 | E113: 347
A114: 2015 Quarter 2 | B114: Sales | C114: 44 | D114: 1997564 | E114: 295
A115: 2015 Quarter 2 | B115: Sales | C115: 45 | D115: 1334639 | E115: 414
A116: 2015 Quarter 2 | B116: Sales | C116: 48 | D116: D | E116: D
A117: 2015 Quarter 2 | B117: Sales | C117: 51 | D117: 746854 | E117: 124
A118: 2015 Quarter 2 | B118: Sales | C118: 52 | D118: 76160 | E118: 27
A119: 2015 Quarter 2 | B119: Sales | C119: 53 | D119: 109974 | E119: 50
A120: 2015 Quarter 2 | B120: Sales | C120: 54 | D120: 501345 | E120: 80
A121: 2015 Quarter 2 | B121: Sales | C121: 55 | D121: D | E121: D
A122: 2015 Quarter 2 | B122: Sales | C122: 56 | D122: 558298 | E122: 96
A123: 2015 Quarter 2 | B123: Sales | C123: 61 | D123: 53347 | E123: 24
A124: 2015 Quarter 2 | B124: Sales | C124: 62 | D124: 113471 | E124: 16
A125: 2015 Quarter 2 | B125: Sales | C125: 71 | D125: 62706 | E125: 9
A126: 2015 Quarter 2 | B126: Sales | C126: 72 | D126: 2191159 | E126: 32
A127: 2015 Quarter 2 | B127: Sales | C127: 81 | D127: 290944 | E127: 49
A128: 2015 Quarter 2 | B128: Sales | C128: 92 | D128: D | E128: D
A129: 2015 Quarter 3 | B129: Sales | C129: 11 | D129: 84693 | E129: 4
A130: 2015 Quarter 3 | B130: Sales | C130: 21 | D130: D | E130: D
A131: 2015 Quarter 3 | B131: Sales | C131: 22 | D131: D | E131: D
A132: 2015 Quarter 3 | B132: Sales | C132: 23 | D132: 2109718 | E132: 164
A133: 2015 Quarter 3 | B133: Sales | C133: 31 | D133: 193348 | E133: 15
A134: 2015 Quarter 3 | B134: Sales | C134: 32 | D134: 144926 | E134: 27
A135: 2015 Quarter 3 | B135: Sales | C135: 33 | D135: 135601 | E135: 34
A136: 2015 Quarter 3 | B136: Sales | C136: 42 | D136: 1176302 | E136: 341
A137: 2015 Quarter 3 | B137: Sales | C137: 44 | D137: 1873055 | E137: 297
A138: 2015 Quarter 3 | B138: Sales | C138: 45 | D138: 1625609 | E138: 425
A139: 2015 Quarter 3 | B139: Sales | C139: 51 | D139: 719775 | E139: 127
A140: 2015 Quarter 3 | B140: Sales | C140: 52 | D140: 65916 | E140: 28
A141: 2015 Quarter 3 | B141: Sales | C141: 53 | D141: 119634 | E141: 50
A142: 2015 Quarter 3 | B142: Sales | C142: 54 | D142: 442256 | E142: 89
A143: 2015 Quarter 3 | B143: Sales | C143: 55 | D143: D | E143: D
A144: 2015 Quarter 3 | B144: Sales | C144: 56 | D144: 455597 | E144: 92
A145: 2015 Quarter 3 | B145: Sales | C145: 61 | D145: 44070 | E145: 24
A146: 2015 Quarter 3 | B146: Sales | C146: 62 | D146: 109787 | E146: 17
A147: 2015 Quarter 3 | B147: Sales | C147: 71 | D147: 94910 | E147: 10
A148: 2015 Quarter 3 | B148: Sales | C148: 72 | D148: 3030728 | E148: 33
A149: 2015 Quarter 3 | B149: Sales | C149: 81 | D149: 265942 | E149: 45
A150: 2015 Quarter 3 | B150: Sales | C150: 92 | D150: D | E150: D
A151: 2015 Quarter 4 | B151: Sales | C151: 11 | D151: 56619 | E151: 9
A152: 2015 Quarter 4 | B152: Sales | C152: 21 | D152: D | E152: D
A153: 2015 Quarter 4 | B153: Sales | C153: 22 | D153: D | E153: D
A154: 2015 Quarter 4 | B154: Sales | C154: 23 | D154: 4328100 | E154: 166
A155: 2015 Quarter 4 | B155: Sales | C155: 31 | D155: 110776 | E155: 24
A156: 2015 Quarter 4 | B156: Sales | C156: 32 | D156: 404277 | E156: 53
A157: 2015 Quarter 4 | B157: Sales | C157: 33 | D157: 92997 | E157: 46
A158: 2015 Quarter 4 | B158: Sales | C158: 42 | D158: 1281882 | E158: 361
A159: 2015 Quarter 4 | B159: Sales | C159: 44 | D159: 1902754 | E159: 344
A160: 2015 Quarter 4 | B160: Sales | C160: 45 | D160: 1582425 | E160: 571
A161: 2015 Quarter 4 | B161: Sales | C161: 48 | D161: D | E161: D
A162: 2015 Quarter 4 | B162: Sales | C162: 49 | D162: D | E162: D
A163: 2015 Quarter 4 | B163: Sales | C163: 51 | D163: 777545 | E163: 129
A164: 2015 Quarter 4 | B164: Sales | C164: 52 | D164: 78811 | E164: 31
A165: 2015 Quarter 4 | B165: Sales | C165: 53 | D165: 226650 | E165: 54
A166: 2015 Quarter 4 | B166: Sales | C166: 54 | D166: 617821 | E166: 109
A167: 2015 Quarter 4 | B167: Sales | C167: 55 | D167: D | E167: D
A168: 2015 Quarter 4 | B168: Sales | C168: 56 | D168: 536523 | E168: 111
A169: 2015 Quarter 4 | B169: Sales | C169: 61 | D169: 38861 | E169: 26
A170: 2015 Quarter 4 | B170: Sales | C170: 62 | D170: 111264 | E170: 12
A171: 2015 Quarter 4 | B171: Sales | C171: 71 | D171: 83086 | E171: 23
A172: 2015 Quarter 4 | B172: Sales | C172: 72 | D172: 1695434 | E172: 39
A173: 2015 Quarter 4 | B173: Sales | C173: 81 | D173: 358783 | E173: 64
A174: 2015 Quarter 4 | B174: Sales | C174: 92 | D174: D | E174: D
A175: 2016 Quarter 1 | B175: Sales | C175: 11 | D175: 25336 | E175: 4
A176: 2016 Quarter 1 | B176: Sales | C176: 22 | D176: 6584 | E176: 3
A177: 2016 Quarter 1 | B177: Sales | C177: 23 | D177: 6345691 | E177: 143
A178: 2016 Quarter 1 | B178: Sales | C178: 31 | D178: 154602 | E178: 22
A179: 2016 Quarter 1 | B179: Sales | C179: 32 | D179: 322765 | E179: 32
A180: 2016 Quarter 1 | B180: Sales | C180: 33 | D180: 106551 | E180: 34
A181: 2016 Quarter 1 | B181: Sales | C181: 42 | D181: 1299555 | E181: 336
A182: 2016 Quarter 1 | B182: Sales | C182: 44 | D182: 1659629 | E182: 319
A183: 2016 Quarter 1 | B183: Sales | C183: 45 | D183: 1139035 | E183: 415
A184: 2016 Quarter 1 | B184: Sales | C184: 48 | D184: D | E184: D
A185: 2016 Quarter 1 | B185: Sales | C185: 51 | D185: 708403 | E185: 114
A186: 2016 Quarter 1 | B186: Sales | C186: 52 | D186: 82108 | E186: 28
A187: 2016 Quarter 1 | B187: Sales | C187: 53 | D187: 242624 | E187: 58
A188: 2016 Quarter 1 | B188: Sales | C188: 54 | D188: 472852 | E188: 93
A189: 2016 Quarter 1 | B189: Sales | C189: 55 | D189: D | E189: D
A190: 2016 Quarter 1 | B190: Sales | C190: 56 | D190: 423443 | E190: 89
A191: 2016 Quarter 1 | B191: Sales | C191: 61 | D191: 34284 | E191: 22
A192: 2016 Quarter 1 | B192: Sales | C192: 62 | D192: 98844 | E192: 13
A193: 2016 Quarter 1 | B193: Sales | C193: 71 | D193: 41558 | E193: 7
A194: 2016 Quarter 1 | B194: Sales | C194: 72 | D194: 1688425 | E194: 30
A195: 2016 Quarter 1 | B195: Sales | C195: 81 | D195: 224155 | E195: 46
A196: 2016 Quarter 1 | B196: Sales | C196: 92 | D196: D | E196: D
A197: 2016 Quarter 2 | B197: Sales | C197: 11 | D197: 56260 | E197: 5
A198: 2016 Quarter 2 | B198: Sales | C198: 22 | D198: D | E198: D
A199: 2016 Quarter 2 | B199: Sales | C199: 23 | D199: 6120371 | E199: 170
A200: 2016 Quarter 2 | B200: Sales | C200: 31 | D200: 211921 | E200: 18
... 544 more rows

Sheet Langley
A1: NAICS | B1: (All) | C1: =VLOOKUP(B1,NAICS!A1:B2604,2,FALSE) -> 
A3: Row Labels | B3: Sum of Total Taxable
A4: 2014 Quarter 1 | B4: 7397435
A5: 2014 Quarter 2 | B5: 9145967
A6: 2014 Quarter 3 | B6: 11487725
A7: 2014 Quarter 4 | B7: 9154497
A8: 2015 Quarter 1 | B8: 7811245
A9: 2015 Quarter 2 | B9: 8989338
A10: 2015 Quarter 3 | B10: 12271285
A11: 2015 Quarter 4 | B11: 10506084
A12: 2016 Quarter 1 | B12: 8312506
A13: 2016 Quarter 2 | B13: 10359931
A14: 2016 Quarter 3 | B14: 13416735
A15: 2016 Quarter 4 | B15: 11985075
A16: 2017 Quarter 1 | B16: 9468342
A17: 2017 Quarter 2 | B17: 11640437
A18: 2017 Quarter 3 | B18: 14248505
A19: 2017 Quarter 4 | B19: 12508426
A20: 2018 Quarter 1 | B20: 10242984
A21: 2018 Quarter 2 | B21: 12317065
A22: 2018 Quarter 3 | B22: 14888961
A23: 2018 Quarter 4 | B23: 12403616
A24: 2019 Quarter 1 | B24: 10249339
A25: 2019 Quarter 2 | B25: 13460624
A26: 2019 Quarter 3 | B26: 16212690
A27: 2019 Quarter 4 | B27: 14230334
A28: 2020 Quarter 1 | B28: 10470110
A29: 2020 Quarter 2 | B29: 9163680 | E29: Amounts | F29: % Difference
A30: 2020 Quarter 3 | B30: 14149771 | D30: Median | E30: =MEDIAN(B4:B36) -> 11985075 | F30: =(B$36-E30)/E30 -> 0.1312441516
A31: 2020 Quarter 4 | B31: 13869134 | D31: Average | E31: =AVERAGE(B4:B36) -> 11877221.91 | F31: =(B$36-E31)/E31 -> 0.1415166024
A32: 2021 Quarter 1 | B32: 11471550 | D32: Minimum | E32: =MIN(B4:B36) -> 7397435 | F32: =(B$36-E32)/E32 -> 0.8328036678
A33: 2021 Quarter 2 | B33: 14364768 | D33: Maximum | E33: =MAX(B4:B36) -> 17499629 | F33: =(B$36-E33)/E33 -> -0.2252380893
A34: 2021 Quarter 3 | B34: 17499629 | D34: Yr Over Yr | E34: =B36-B32 -> 2086496 | F34: =E36/B30 -> 0
A35: 2021 Quarter 4 | B35: 14692489
A36: 2022 Quarter 1 | B36: 13558046

Sheet Langley Data (hidden)
A1: Year | B1: Tax Type | C1: NAICS | D1: Total Taxable | E1: Units
A2: 2014 Quarter 1 | B2: Sales | C2: 11 | D2: D | E2: D
A3: 2014 Quarter 1 | B3: Sales | C3: 22 | D3: D | E3: D
A4: 2014 Quarter 1 | B4: Sales | C4: 23 | D4: 1306304 | E4: 119
A5: 2014 Quarter 1 | B5: Sales | C5: 31 | D5: 70862 | E5: 19
A6: 2014 Quarter 1 | B6: Sales | C6: 32 | D6: 47105 | E6: 22
A7: 2014 Quarter 1 | B7: Sales | C7: 33 | D7: 41624 | E7: 14
A8: 2014 Quarter 1 | B8: Sales | C8: 42 | D8: 985637 | E8: 238
A9: 2014 Quarter 1 | B9: Sales | C9: 44 | D9: 582040 | E9: 210
A10: 2014 Quarter 1 | B10: Sales | C10: 45 | D10: 1581043 | E10: 304
A11: 2014 Quarter 1 | B11: Sales | C11: 48 | D11: D | E11: D
A12: 2014 Quarter 1 | B12: Sales | C12: 51 | D12: 285165 | E12: 97
A13: 2014 Quarter 1 | B13: Sales | C13: 52 | D13: 53648 | E13: 25
A14: 2014 Quarter 1 | B14: Sales | C14: 53 | D14: 58633 | E14: 38
A15: 2014 Quarter 1 | B15: Sales | C15: 54 | D15: 107977 | E15: 69
A16: 2014 Quarter 1 | B16: Sales | C16: 56 | D16: 298641 | E16: 71
A17: 2014 Quarter 1 | B17: Sales | C17: 61 | D17: 5865 | E17: 14
A18: 2014 Quarter 1 | B18: Sales | C18: 62 | D18: 1173 | E18: 7
A19: 2014 Quarter 1 | B19: Sales | C19: 71 | D19: 30494 | E19: 7
A20: 2014 Quarter 1 | B20: Sales | C20: 72 | D20: 1667480 | E20: 12
A21: 2014 Quarter 1 | B21: Sales | C21: 81 | D21: 273744 | E21: 43
A22: 2014 Quarter 2 | B22: Sales | C22: 11 | D22: D | E22: D
A23: 2014 Quarter 2 | B23: Sales | C23: 22 | D23: D | E23: D
A24: 2014 Quarter 2 | B24: Sales | C24: 23 | D24: 1756797 | E24: 134
A25: 2014 Quarter 2 | B25: Sales | C25: 31 | D25: 103285 | E25: 17
A26: 2014 Quarter 2 | B26: Sales | C26: 32 | D26: 105225 | E26: 28
A27: 2014 Quarter 2 | B27: Sales | C27: 33 | D27: 40392 | E27: 22
A28: 2014 Quarter 2 | B28: Sales | C28: 42 | D28: 711946 | E28: 230
A29: 2014 Quarter 2 | B29: Sales | C29: 44 | D29: 665256 | E29: 230
A30: 2014 Quarter 2 | B30: Sales | C30: 45 | D30: 2018143 | E30: 337
A31: 2014 Quarter 2 | B31: Sales | C31: 48 | D31: D | E31: D
A32: 2014 Quarter 2 | B32: Sales | C32: 51 | D32: 377120 | E32: 97
A33: 2014 Quarter 2 | B33: Sales | C33: 52 | D33: 60448 | E33: 29
A34: 2014 Quarter 2 | B34: Sales | C34: 53 | D34: 66766 | E34: 44
A35: 2014 Quarter 2 | B35: Sales | C35: 54 | D35: 151636 | E35: 67
A36: 2014 Quarter 2 | B36: Sales | C36: 56 | D36: 284378 | E36: 65
A37: 2014 Quarter 2 | B37: Sales | C37: 61 | D37: 14764 | E37: 19
A38: 2014 Quarter 2 | B38: Sales | C38: 62 | D38: 2422 | E38: 5
A39: 2014 Quarter 2 | B39: Sales | C39: 71 | D39: 38768 | E39: 6
A40: 2014 Quarter 2 | B40: Sales | C40: 72 | D40: 2373439 | E40: 14
A41: 2014 Quarter 2 | B41: Sales | C41: 81 | D41: 375182 | E41: 42
A42: 2014 Quarter 2 | B42: Sales | C42: 92 | D42: D | E42: D
A43: 2014 Quarter 3 | B43: Sales | C43: 11 | D43: D | E43: D
A44: 2014 Quarter 3 | B44: Sales | C44: 22 | D44: D | E44: D
A45: 2014 Quarter 3 | B45: Sales | C45: 23 | D45: 1927903 | E45: 132
A46: 2014 Quarter 3 | B46: Sales | C46: 31 | D46: 142239 | E46: 20
A47: 2014 Quarter 3 | B47: Sales | C47: 32 | D47: 109173 | E47: 27
A48: 2014 Quarter 3 | B48: Sales | C48: 33 | D48: 49018 | E48: 23
A49: 2014 Quarter 3 | B49: Sales | C49: 42 | D49: 646650 | E49: 259
A50: 2014 Quarter 3 | B50: Sales | C50: 44 | D50: 763610 | E50: 225
A51: 2014 Quarter 3 | B51: Sales | C51: 45 | D51: 2508465 | E51: 348
A52: 2014 Quarter 3 | B52: Sales | C52: 48 | D52: D | E52: D
A53: 2014 Quarter 3 | B53: Sales | C53: 51 | D53: 563065 | E53: 109
A54: 2014 Quarter 3 | B54: Sales | C54: 52 | D54: 85067 | E54: 29
A55: 2014 Quarter 3 | B55: Sales | C55: 53 | D55: 90075 | E55: 45
A56: 2014 Quarter 3 | B56: Sales | C56: 54 | D56: 155363 | E56: 66
A57: 2014 Quarter 3 | B57: Sales | C57: 56 | D57: 289857 | E57: 78
A58: 2014 Quarter 3 | B58: Sales | C58: 61 | D58: 11290 | E58: 14
A59: 2014 Quarter 3 | B59: Sales | C59: 62 | D59: 1787 | E59: 9
A60: 2014 Quarter 3 | B60: Sales | C60: 71 | D60: 61804 | E60: 12
A61: 2014 Quarter 3 | B61: Sales | C61: 72 | D61: 3657272 | E61: 20
A62: 2014 Quarter 3 | B62: Sales | C62: 81 | D62: 425087 | E62: 40
A63: 2014 Quarter 3 | B63: Sales | C63: 92 | D63: D | E63: D
A64: 2014 Quarter 4 | B64: Sales | C64: 11 | D64: 1465 | E64: 3
A65: 2014 Quarter 4 | B65: Sales | C65: 22 | D65: D | E65: D
A66: 2014 Quarter 4 | B66: Sales | C66: 23 | D66: 1011162 | E66: 126
A67: 2014 Quarter 4 | B67: Sales | C67: 31 | D67: 81938 | E67: 25
A68: 2014 Quarter 4 | B68: Sales | C68: 32 | D68: 89204 | E68: 29
A69: 2014 Quarter 4 | B69: Sales | C69: 33 | D69: 18049 | E69: 22
A70: 2014 Quarter 4 | B70: Sales | C70: 42 | D70: 764899 | E70: 261
A71: 2014 Quarter 4 | B71: Sales | C71: 44 | D71: 1100488 | E71: 263
A72: 2014 Quarter 4 | B72: Sales | C72: 45 | D72: 2367643 | E72: 435
A73: 2014 Quarter 4 | B73: Sales | C73: 48 | D73: D | E73: D
A74: 2014 Quarter 4 | B74: Sales | C74: 49 | D74: D | E74: D
A75: 2014 Quarter 4 | B75: Sales | C75: 51 | D75: 376827 | E75: 111
A76: 2014 Quarter 4 | B76: Sales | C76: 52 | D76: 87179 | E76: 27
A77: 2014 Quarter 4 | B77: Sales | C77: 53 | D77: 76443 | E77: 36
A78: 2014 Quarter 4 | B78: Sales | C78: 54 | D78: 334696 | E78: 81
A79: 2014 Quarter 4 | B79: Sales | C79: 56 | D79: 375170 | E79: 83
A80: 2014 Quarter 4 | B80: Sales | C80: 61 | D80: 79241 | E80: 19
A81: 2014 Quarter 4 | B81: Sales | C81: 62 | D81: 1083 | E81: 8
A82: 2014 Quarter 4 | B82: Sales | C82: 71 | D82: 122236 | E82: 19
A83: 2014 Quarter 4 | B83: Sales | C83: 72 | D83: 1892554 | E83: 20
A84: 2014 Quarter 4 | B84: Sales | C84: 81 | D84: 374220 | E84: 47
A85: 2014 Quarter 4 | B85: Sales | C85: 92 | D85: D | E85: D
A86: 2015 Quarter 1 | B86: Sales | C86: 11 | D86: D | E86: D
A87: 2015 Quarter 1 | B87: Sales | C87: 22 | D87: D | E87: D
A88: 2015 Quarter 1 | B88: Sales | C88: 23 | D88: 1072935 | E88: 123
A89: 2015 Quarter 1 | B89: Sales | C89: 31 | D89: 76062 | E89: 14
A90: 2015 Quarter 1 | B90: Sales | C90: 32 | D90: 81450 | E90: 24
A91: 2015 Quarter 1 | B91: Sales | C91: 33 | D91: 16435 | E91: 13
A92: 2015 Quarter 1 | B92: Sales | C92: 42 | D92: 1098322 | E92: 252
A93: 2015 Quarter 1 | B93: Sales | C93: 44 | D93: 732448 | E93: 216
A94: 2015 Quarter 1 | B94: Sales | C94: 45 | D94: 1705663 | E94: 345
A95: 2015 Quarter 1 | B95: Sales | C95: 48 | D95: D | E95: D
A96: 2015 Quarter 1 | B96: Sales | C96: 51 | D96: 368432 | E96: 110
A97: 2015 Quarter 1 | B97: Sales | C97: 52 | D97: 66426 | E97: 23
A98: 2015 Quarter 1 | B98: Sales | C98: 53 | D98: 56062 | E98: 38
A99: 2015 Quarter 1 | B99: Sales | C99: 54 | D99: 155496 | E99: 61
A100: 2015 Quarter 1 | B100: Sales | C100: 56 | D100: 207212 | E100: 65
A101: 2015 Quarter 1 | B101: Sales | C101: 61 | D101: 12499 | E101: 16
A102: 2015 Quarter 1 | B102: Sales | C102: 62 | D102: 1629 | E102: 9
A103: 2015 Quarter 1 | B103: Sales | C103: 71 | D103: 23157 | E103: 7
A104: 2015 Quarter 1 | B104: Sales | C104: 72 | D104: 1818171 | E104: 16
A105: 2015 Quarter 1 | B105: Sales | C105: 81 | D105: 318846 | E105: 43
A106: 2015 Quarter 1 | B106: Sales | C106: 92 | D106: D | E106: D
A107: 2015 Quarter 2 | B107: Sales | C107: 11 | D107: 12871 | E107: 3
A108: 2015 Quarter 2 | B108: Sales | C108: 22 | D108: D | E108: D
A109: 2015 Quarter 2 | B109: Sales | C109: 23 | D109: 1177415 | E109: 142
A110: 2015 Quarter 2 | B110: Sales | C110: 31 | D110: 94954 | E110: 23
A111: 2015 Quarter 2 | B111: Sales | C111: 32 | D111: 137493 | E111: 23
A112: 2015 Quarter 2 | B112: Sales | C112: 33 | D112: 33156 | E112: 27
A113: 2015 Quarter 2 | B113: Sales | C113: 42 | D113: 600593 | E113: 245
A114: 2015 Quarter 2 | B114: Sales | C114: 44 | D114: 795273 | E114: 246
A115: 2015 Quarter 2 | B115: Sales | C115: 45 | D115: 2109194 | E115: 342
A116: 2015 Quarter 2 | B116: Sales | C116: 48 | D116: 62960 | E116: 3
A117: 2015 Quarter 2 | B117: Sales | C117: 51 | D117: 362729 | E117: 95
A118: 2015 Quarter 2 | B118: Sales | C118: 52 | D118: 77851 | E118: 24
A119: 2015 Quarter 2 | B119: Sales | C119: 53 | D119: 44686 | E119: 34
A120: 2015 Quarter 2 | B120: Sales | C120: 54 | D120: 235244 | E120: 71
A121: 2015 Quarter 2 | B121: Sales | C121: 56 | D121: 223743 | E121: 76
A122: 2015 Quarter 2 | B122: Sales | C122: 61 | D122: 8885 | E122: 15
A123: 2015 Quarter 2 | B123: Sales | C123: 62 | D123: 1508 | E123: 7
A124: 2015 Quarter 2 | B124: Sales | C124: 71 | D124: 48008 | E124: 6
A125: 2015 Quarter 2 | B125: Sales | C125: 72 | D125: 2596387 | E125: 19
A126: 2015 Quarter 2 | B126: Sales | C126: 81 | D126: 366388 | E126: 45
A127: 2015 Quarter 2 | B127: Sales | C127: 92 | D127: D | E127: D
A128: 2015 Quarter 3 | B128: Sales | C128: 22 | D128: D | E128: D
A129: 2015 Quarter 3 | B129: Sales | C129: 23 | D129: 1885692 | E129: 147
A130: 2015 Quarter 3 | B130: Sales | C130: 31 | D130: 121803 | E130: 16
A131: 2015 Quarter 3 | B131: Sales | C131: 32 | D131: 149341 | E131: 32
A132: 2015 Quarter 3 | B132: Sales | C132: 33 | D132: 36466 | E132: 23
A133: 2015 Quarter 3 | B133: Sales | C133: 42 | D133: 543931 | E133: 253
A134: 2015 Quarter 3 | B134: Sales | C134: 44 | D134: 1016108 | E134: 264
A135: 2015 Quarter 3 | B135: Sales | C135: 45 | D135: 2751744 | E135: 364
A136: 2015 Quarter 3 | B136: Sales | C136: 48 | D136: D | E136: D
A137: 2015 Quarter 3 | B137: Sales | C137: 51 | D137: 393559 | E137: 109
A138: 2015 Quarter 3 | B138: Sales | C138: 52 | D138: 102657 | E138: 26
A139: 2015 Quarter 3 | B139: Sales | C139: 53 | D139: 93910 | E139: 43
A140: 2015 Quarter 3 | B140: Sales | C140: 54 | D140: 220748 | E140: 71
A141: 2015 Quarter 3 | B141: Sales | C141: 56 | D141: 189859 | E141: 66
A142: 2015 Quarter 3 | B142: Sales | C142: 61 | D142: 129747 | E142: 18
A143: 2015 Quarter 3 | B143: Sales | C143: 62 | D143: 1222 | E143: 6
A144: 2015 Quarter 3 | B144: Sales | C144: 71 | D144: 93062 | E144: 10
A145: 2015 Quarter 3 | B145: Sales | C145: 72 | D145: 4098623 | E145: 31
A146: 2015 Quarter 3 | B146: Sales | C146: 81 | D146: 438978 | E146: 37
A147: 2015 Quarter 3 | B147: Sales | C147: 92 | D147: 3835 | E147: 3
A148: 2015 Quarter 4 | B148: Sales | C148: 11 | D148: 2281 | E148: 4
A149: 2015 Quarter 4 | B149: Sales | C149: 22 | D149: D | E149: D
A150: 2015 Quarter 4 | B150: Sales | C150: 23 | D150: 2034716 | E150: 134
A151: 2015 Quarter 4 | B151: Sales | C151: 31 | D151: 96439 | E151: 23
A152: 2015 Quarter 4 | B152: Sales | C152: 32 | D152: 133195 | E152: 33
A153: 2015 Quarter 4 | B153: Sales | C153: 33 | D153: 15837 | E153: 19
A154: 2015 Quarter 4 | B154: Sales | C154: 42 | D154: 696230 | E154: 279
A155: 2015 Quarter 4 | B155: Sales | C155: 44 | D155: 929426 | E155: 320
A156: 2015 Quarter 4 | B156: Sales | C156: 45 | D156: 2431419 | E156: 497
A157: 2015 Quarter 4 | B157: Sales | C157: 48 | D157: D | E157: D
A158: 2015 Quarter 4 | B158: Sales | C158: 49 | D158: D | E158: D
A159: 2015 Quarter 4 | B159: Sales | C159: 51 | D159: 434294 | E159: 121
A160: 2015 Quarter 4 | B160: Sales | C160: 52 | D160: 86287 | E160: 27
A161: 2015 Quarter 4 | B161: Sales | C161: 53 | D161: 104091 | E161: 43
A162: 2015 Quarter 4 | B162: Sales | C162: 54 | D162: 226824 | E162: 75
A163: 2015 Quarter 4 | B163: Sales | C163: 56 | D163: 314294 | E163: 88
A164: 2015 Quarter 4 | B164: Sales | C164: 61 | D164: 203901 | E164: 24
A165: 2015 Quarter 4 | B165: Sales | C165: 62 | D165: 7548 | E165: 9
A166: 2015 Quarter 4 | B166: Sales | C166: 71 | D166: 115426 | E166: 20
A167: 2015 Quarter 4 | B167: Sales | C167: 72 | D167: 2289668 | E167: 22
A168: 2015 Quarter 4 | B168: Sales | C168: 81 | D168: 384208 | E168: 51
A169: 2015 Quarter 4 | B169: Sales | C169: 92 | D169: D | E169: D
A170: 2016 Quarter 1 | B170: Sales | C170: 11 | D170: D | E170: D
A171: 2016 Quarter 1 | B171: Sales | C171: 22 | D171: D | E171: D
A172: 2016 Quarter 1 | B172: Sales | C172: 23 | D172: 1460168 | E172: 133
A173: 2016 Quarter 1 | B173: Sales | C173: 31 | D173: 116194 | E173: 20
A174: 2016 Quarter 1 | B174: Sales | C174: 32 | D174: 94286 | E174: 27
A175: 2016 Quarter 1 | B175: Sales | C175: 33 | D175: 86100 | E175: 23
A176: 2016 Quarter 1 | B176: Sales | C176: 42 | D176: 669207 | E176: 238
A177: 2016 Quarter 1 | B177: Sales | C177: 44 | D177: 727965 | E177: 285
A178: 2016 Quarter 1 | B178: Sales | C178: 45 | D178: 1750489 | E178: 375
A179: 2016 Quarter 1 | B179: Sales | C179: 48 | D179: D | E179: D
A180: 2016 Quarter 1 | B180: Sales | C180: 51 | D180: 405973 | E180: 114
A181: 2016 Quarter 1 | B181: Sales | C181: 52 | D181: 74497 | E181: 29
A182: 2016 Quarter 1 | B182: Sales | C182: 53 | D182: 233356 | E182: 40
A183: 2016 Quarter 1 | B183: Sales | C183: 54 | D183: 148231 | E183: 76
A184: 2016 Quarter 1 | B184: Sales | C184: 56 | D184: 248579 | E184: 72
A185: 2016 Quarter 1 | B185: Sales | C185: 61 | D185: 13479 | E185: 20
A186: 2016 Quarter 1 | B186: Sales | C186: 62 | D186: 1037 | E186: 6
A187: 2016 Quarter 1 | B187: Sales | C187: 71 | D187: 17135 | E187: 7
A188: 2016 Quarter 1 | B188: Sales | C188: 72 | D188: 1968825 | E188: 17
A189: 2016 Quarter 1 | B189: Sales | C189: 81 | D189: 296985 | E189: 38
A190: 2016 Quarter 1 | B190: Sales | C190: 92 | D190: D | E190: D
A191: 2016 Quarter 2 | B191: Sales | C191: 11 | D191: D | E191: D
A192: 2016 Quarter 2 | B192: Sales | C192: 22 | D192: D | E192: D
A193: 2016 Quarter 2 | B193: Sales | C193: 23 | D193: 1656682 | E193: 129
A194: 2016 Quarter 2 | B194: Sales | C194: 31 | D194: 132376 | E194: 26
A195: 2016 Quarter 2 | B195: Sales | C195: 32 | D195: 181585 | E195: 30
A196: 2016 Quarter 2 | B196: Sales | C196: 33 | D196: 61658 | E196: 24
A197: 2016 Quarter 2 | B197: Sales | C197: 42 | D197: 614038 | E197: 236
A198: 2016 Quarter 2 | B198: Sales | C198: 44 | D198: 950909 | E198: 299
A199: 2016 Quarter 2 | B199: Sales | C199: 45 | D199: 2294734 | E199: 415
A200: 2016 Quarter 2 | B200: Sales | C200: 48 | D200: D | E200: D
... 513 more rows

Sheet Oak Harbor
A1: NAICS | B1: (All) | C1: =VLOOKUP(B1,NAICS!A1:B2604,2,FALSE) -> 
A3: Row Labels | B3: Sum of Total Taxable
A4: 2014 Quarter 1 | B4: 72683696
A5: 2014 Quarter 2 | B5: 80928322
A6: 2014 Quarter 3 | B6: 83749226
A7: 2014 Quarter 4 | B7: 81271950
A8: 2015 Quarter 1 | B8: 75790719
A9: 2015 Quarter 2 | B9: 87666274
A10: 2015 Quarter 3 | B10: 92829278
A11: 2015 Quarter 4 | B11: 90965132
A12: 2016 Quarter 1 | B12: 85008881
A13: 2016 Quarter 2 | B13: 102904792
A14: 2016 Quarter 3 | B14: 105459441
A15: 2016 Quarter 4 | B15: 100246743
A16: 2017 Quarter 1 | B16: 94892000
A17: 2017 Quarter 2 | B17: 110568703
A18: 2017 Quarter 3 | B18: 116593598
A19: 2017 Quarter 4 | B19: 117482190
A20: 2018 Quarter 1 | B20: 110736525
A21: 2018 Quarter 2 | B21: 123303018
A22: 2018 Quarter 3 | B22: 126765864
A23: 2018 Quarter 4 | B23: 125515949
A24: 2019 Quarter 1 | B24: 103242737
A25: 2019 Quarter 2 | B25: 121208046
A26: 2019 Quarter 3 | B26: 116898880
A27: 2019 Quarter 4 | B27: 119392794
A28: 2020 Quarter 1 | B28: 105943414
A29: 2020 Quarter 2 | B29: 120675843 | E29: Amounts | F29: % Difference
A30: 2020 Quarter 3 | B30: 132288990 | D30: Median | E30: =MEDIAN(B4:B36) -> 110736525 | F30: =(B$36-E30)/E30 -> 0.2295230684
A31: 2020 Quarter 4 | B31: 136150398 | D31: Average | E31: =AVERAGE(B4:B36) -> 110336970 | F31: =(B$36-E31)/E31 -> 0.2339754481
A32: 2021 Quarter 1 | B32: 124779064 | D32: Minimum | E32: =MIN(B4:B36) -> 72683696 | F32: =(B$36-E32)/E32 -> 0.8732276906
A33: 2021 Quarter 2 | B33: 147319403 | D33: Maximum | E33: =MAX(B4:B36) -> 147319403 | F33: =(B$36-E33)/E33 -> -0.07579647197
A34: 2021 Quarter 3 | B34: 146741238 | D34: Yr Over Yr | E34: =B36-B32 -> 11374048 | F34: =E36/B30 -> 0
A35: 2021 Quarter 4 | B35: 144963790
A36: 2022 Quarter 1 | B36: 136153112
C67: -

Sheet Oak Harbor Data (hidden)
A1: Year | B1: Tax Type | C1: NAICS | D1: Total Taxable | E1: Units
A2: 2014 Quarter 1 | B2: Sales | C2: 11 | D2: D | E2: D
A3: 2014 Quarter 1 | B3: Sales | C3: 21 | D3: D | E3: D
A4: 2014 Quarter 1 | B4: Sales | C4: 22 | D4: 101351 | E4: 3
A5: 2014 Quarter 1 | B5: Sales | C5: 23 | D5: 5260207 | E5: 384
A6: 2014 Quarter 1 | B6: Sales | C6: 31 | D6: 215978 | E6: 51
A7: 2014 Quarter 1 | B7: Sales | C7: 32 | D7: 675797 | E7: 62
A8: 2014 Quarter 1 | B8: Sales | C8: 33 | D8: 264533 | E8: 81
A9: 2014 Quarter 1 | B9: Sales | C9: 42 | D9: 4118616 | E9: 682
A10: 2014 Quarter 1 | B10: Sales | C10: 44 | D10: 22976557 | E10: 480
A11: 2014 Quarter 1 | B11: Sales | C11: 45 | D11: 17429363 | E11: 674
A12: 2014 Quarter 1 | B12: Sales | C12: 48 | D12: 13545 | E12: 3
A13: 2014 Quarter 1 | B13: Sales | C13: 49 | D13: D | E13: D
A14: 2014 Quarter 1 | B14: Sales | C14: 51 | D14: 3604496 | E14: 224
A15: 2014 Quarter 1 | B15: Sales | C15: 52 | D15: 583975 | E15: 51
A16: 2014 Quarter 1 | B16: Sales | C16: 53 | D16: 1389978 | E16: 113
A17: 2014 Quarter 1 | B17: Sales | C17: 54 | D17: 1146350 | E17: 166
A18: 2014 Quarter 1 | B18: Sales | C18: 56 | D18: 1180323 | E18: 195
A19: 2014 Quarter 1 | B19: Sales | C19: 61 | D19: 114627 | E19: 37
A20: 2014 Quarter 1 | B20: Sales | C20: 62 | D20: 18340 | E20: 17
A21: 2014 Quarter 1 | B21: Sales | C21: 71 | D21: 759676 | E21: 16
A22: 2014 Quarter 1 | B22: Sales | C22: 72 | D22: 10771963 | E22: 72
A23: 2014 Quarter 1 | B23: Sales | C23: 81 | D23: 2041662 | E23: 150
A24: 2014 Quarter 1 | B24: Sales | C24: 92 | D24: 16359 | E24: 4
A25: 2014 Quarter 2 | B25: Sales | C25: 11 | D25: 7604 | E25: 4
A26: 2014 Quarter 2 | B26: Sales | C26: 22 | D26: 173820 | E26: 3
A27: 2014 Quarter 2 | B27: Sales | C27: 23 | D27: 6029851 | E27: 414
A28: 2014 Quarter 2 | B28: Sales | C28: 31 | D28: 332790 | E28: 45
A29: 2014 Quarter 2 | B29: Sales | C29: 32 | D29: 1027741 | E29: 74
A30: 2014 Quarter 2 | B30: Sales | C30: 33 | D30: 477301 | E30: 105
A31: 2014 Quarter 2 | B31: Sales | C31: 42 | D31: 4028002 | E31: 648
A32: 2014 Quarter 2 | B32: Sales | C32: 44 | D32: 27745823 | E32: 501
A33: 2014 Quarter 2 | B33: Sales | C33: 45 | D33: 16935654 | E33: 715
A34: 2014 Quarter 2 | B34: Sales | C34: 48 | D34: 39311 | E34: 5
A35: 2014 Quarter 2 | B35: Sales | C35: 49 | D35: 4809 | E35: 3
A36: 2014 Quarter 2 | B36: Sales | C36: 51 | D36: 3789611 | E36: 223
A37: 2014 Quarter 2 | B37: Sales | C37: 52 | D37: 786250 | E37: 56
A38: 2014 Quarter 2 | B38: Sales | C38: 53 | D38: 1639305 | E38: 104
A39: 2014 Quarter 2 | B39: Sales | C39: 54 | D39: 1214555 | E39: 164
A40: 2014 Quarter 2 | B40: Sales | C40: 56 | D40: 1579350 | E40: 193
A41: 2014 Quarter 2 | B41: Sales | C41: 61 | D41: 137978 | E41: 44
A42: 2014 Quarter 2 | B42: Sales | C42: 62 | D42: 19152 | E42: 19
A43: 2014 Quarter 2 | B43: Sales | C43: 71 | D43: 832482 | E43: 19
A44: 2014 Quarter 2 | B44: Sales | C44: 72 | D44: 12105678 | E44: 75
A45: 2014 Quarter 2 | B45: Sales | C45: 81 | D45: 2021255 | E45: 164
A46: 2014 Quarter 2 | B46: Sales | C46: 92 | D46: D | E46: D
A47: 2014 Quarter 3 | B47: Sales | C47: 11 | D47: D | E47: D
A48: 2014 Quarter 3 | B48: Sales | C48: 22 | D48: 252288 | E48: 3
A49: 2014 Quarter 3 | B49: Sales | C49: 23 | D49: 7454531 | E49: 418
A50: 2014 Quarter 3 | B50: Sales | C50: 31 | D50: 404612 | E50: 35
A51: 2014 Quarter 3 | B51: Sales | C51: 32 | D51: 1100647 | E51: 68
A52: 2014 Quarter 3 | B52: Sales | C52: 33 | D52: 419672 | E52: 83
A53: 2014 Quarter 3 | B53: Sales | C53: 42 | D53: 3649704 | E53: 666
A54: 2014 Quarter 3 | B54: Sales | C54: 44 | D54: 27254302 | E54: 508
A55: 2014 Quarter 3 | B55: Sales | C55: 45 | D55: 17362494 | E55: 705
A56: 2014 Quarter 3 | B56: Sales | C56: 48 | D56: 68978 | E56: 5
A57: 2014 Quarter 3 | B57: Sales | C57: 49 | D57: D | E57: D
A58: 2014 Quarter 3 | B58: Sales | C58: 51 | D58: 3562232 | E58: 228
A59: 2014 Quarter 3 | B59: Sales | C59: 52 | D59: 826825 | E59: 57
A60: 2014 Quarter 3 | B60: Sales | C60: 53 | D60: 1670674 | E60: 113
A61: 2014 Quarter 3 | B61: Sales | C61: 54 | D61: 1467954 | E61: 174
A62: 2014 Quarter 3 | B62: Sales | C62: 56 | D62: 1537678 | E62: 191
A63: 2014 Quarter 3 | B63: Sales | C63: 61 | D63: 174997 | E63: 43
A64: 2014 Quarter 3 | B64: Sales | C64: 62 | D64: 19006 | E64: 21
A65: 2014 Quarter 3 | B65: Sales | C65: 71 | D65: 936832 | E65: 22
A66: 2014 Quarter 3 | B66: Sales | C66: 72 | D66: 13383325 | E66: 79
A67: 2014 Quarter 3 | B67: Sales | C67: 81 | D67: 2202475 | E67: 141
A68: 2014 Quarter 3 | B68: Sales | C68: 92 | D68: D | E68: D
A69: 2014 Quarter 4 | B69: Sales | C69: 11 | D69: 41377 | E69: 9
A70: 2014 Quarter 4 | B70: Sales | C70: 21 | D70: D | E70: D
A71: 2014 Quarter 4 | B71: Sales | C71: 22 | D71: 72950 | E71: 3
A72: 2014 Quarter 4 | B72: Sales | C72: 23 | D72: 6647875 | E72: 444
A73: 2014 Quarter 4 | B73: Sales | C73: 31 | D73: 272219 | E73: 56
A74: 2014 Quarter 4 | B74: Sales | C74: 32 | D74: 858106 | E74: 75
A75: 2014 Quarter 4 | B75: Sales | C75: 33 | D75: 597192 | E75: 110
A76: 2014 Quarter 4 | B76: Sales | C76: 42 | D76: 3609283 | E76: 695
A77: 2014 Quarter 4 | B77: Sales | C77: 44 | D77: 25610162 | E77: 572
A78: 2014 Quarter 4 | B78: Sales | C78: 45 | D78: 19797159 | E78: 979
A79: 2014 Quarter 4 | B79: Sales | C79: 48 | D79: 44558 | E79: 7
A80: 2014 Quarter 4 | B80: Sales | C80: 49 | D80: 2652 | E80: 4
A81: 2014 Quarter 4 | B81: Sales | C81: 51 | D81: 3971404 | E81: 246
A82: 2014 Quarter 4 | B82: Sales | C82: 52 | D82: 752305 | E82: 57
A83: 2014 Quarter 4 | B83: Sales | C83: 53 | D83: 1379590 | E83: 123
A84: 2014 Quarter 4 | B84: Sales | C84: 54 | D84: 1801789 | E84: 226
A85: 2014 Quarter 4 | B85: Sales | C85: 56 | D85: 1515035 | E85: 231
A86: 2014 Quarter 4 | B86: Sales | C86: 61 | D86: 58977 | E86: 41
A87: 2014 Quarter 4 | B87: Sales | C87: 62 | D87: 55191 | E87: 21
A88: 2014 Quarter 4 | B88: Sales | C88: 71 | D88: 830046 | E88: 35
A89: 2014 Quarter 4 | B89: Sales | C89: 72 | D89: 11083775 | E89: 76
A90: 2014 Quarter 4 | B90: Sales | C90: 81 | D90: 2270305 | E90: 177
A91: 2014 Quarter 4 | B91: Sales | C91: 92 | D91: D | E91: D
A92: 2015 Quarter 1 | B92: Sales | C92: 11 | D92: D | E92: D
A93: 2015 Quarter 1 | B93: Sales | C93: 22 | D93: 123361 | E93: 4
A94: 2015 Quarter 1 | B94: Sales | C94: 23 | D94: 4976387 | E94: 379
A95: 2015 Quarter 1 | B95: Sales | C95: 31 | D95: 271704 | E95: 39
A96: 2015 Quarter 1 | B96: Sales | C96: 32 | D96: 769551 | E96: 69
A97: 2015 Quarter 1 | B97: Sales | C97: 33 | D97: 377124 | E97: 80
A98: 2015 Quarter 1 | B98: Sales | C98: 42 | D98: 3808489 | E98: 697
A99: 2015 Quarter 1 | B99: Sales | C99: 44 | D99: 25135308 | E99: 506
A100: 2015 Quarter 1 | B100: Sales | C100: 45 | D100: 16802696 | E100: 740
A101: 2015 Quarter 1 | B101: Sales | C101: 48 | D101: 8282 | E101: 6
A102: 2015 Quarter 1 | B102: Sales | C102: 49 | D102: D | E102: D
A103: 2015 Quarter 1 | B103: Sales | C103: 51 | D103: 3470288 | E103: 215
A104: 2015 Quarter 1 | B104: Sales | C104: 52 | D104: 637396 | E104: 57
A105: 2015 Quarter 1 | B105: Sales | C105: 53 | D105: 1636213 | E105: 119
A106: 2015 Quarter 1 | B106: Sales | C106: 54 | D106: 1400377 | E106: 177
A107: 2015 Quarter 1 | B107: Sales | C107: 55 | D107: D | E107: D
A108: 2015 Quarter 1 | B108: Sales | C108: 56 | D108: 1277161 | E108: 198
A109: 2015 Quarter 1 | B109: Sales | C109: 61 | D109: 117460 | E109: 32
A110: 2015 Quarter 1 | B110: Sales | C110: 62 | D110: 15497 | E110: 18
A111: 2015 Quarter 1 | B111: Sales | C111: 71 | D111: 811422 | E111: 18
A112: 2015 Quarter 1 | B112: Sales | C112: 72 | D112: 11890424 | E112: 72
A113: 2015 Quarter 1 | B113: Sales | C113: 81 | D113: 2261579 | E113: 134
A114: 2015 Quarter 1 | B114: Sales | C114: 92 | D114: D | E114: D
A115: 2015 Quarter 2 | B115: Sales | C115: 11 | D115: 22093 | E115: 4
A116: 2015 Quarter 2 | B116: Sales | C116: 22 | D116: 133880 | E116: 3
A117: 2015 Quarter 2 | B117: Sales | C117: 23 | D117: 6979434 | E117: 414
A118: 2015 Quarter 2 | B118: Sales | C118: 31 | D118: 357603 | E118: 45
A119: 2015 Quarter 2 | B119: Sales | C119: 32 | D119: 938099 | E119: 65
A120: 2015 Quarter 2 | B120: Sales | C120: 33 | D120: 331281 | E120: 89
A121: 2015 Quarter 2 | B121: Sales | C121: 42 | D121: 4159498 | E121: 674
A122: 2015 Quarter 2 | B122: Sales | C122: 44 | D122: 29670985 | E122: 519
A123: 2015 Quarter 2 | B123: Sales | C123: 45 | D123: 17988528 | E123: 752
A124: 2015 Quarter 2 | B124: Sales | C124: 48 | D124: 40672 | E124: 4
A125: 2015 Quarter 2 | B125: Sales | C125: 49 | D125: D | E125: D
A126: 2015 Quarter 2 | B126: Sales | C126: 51 | D126: 3523388 | E126: 212
A127: 2015 Quarter 2 | B127: Sales | C127: 52 | D127: 855742 | E127: 58
A128: 2015 Quarter 2 | B128: Sales | C128: 53 | D128: 2197856 | E128: 115
A129: 2015 Quarter 2 | B129: Sales | C129: 54 | D129: 1710665 | E129: 177
A130: 2015 Quarter 2 | B130: Sales | C130: 55 | D130: D | E130: D
A131: 2015 Quarter 2 | B131: Sales | C131: 56 | D131: 1877420 | E131: 217
A132: 2015 Quarter 2 | B132: Sales | C132: 61 | D132: 89838 | E132: 40
A133: 2015 Quarter 2 | B133: Sales | C133: 62 | D133: 17739 | E133: 20
A134: 2015 Quarter 2 | B134: Sales | C134: 71 | D134: 907584 | E134: 21
A135: 2015 Quarter 2 | B135: Sales | C135: 72 | D135: 13529881 | E135: 77
A136: 2015 Quarter 2 | B136: Sales | C136: 81 | D136: 2334088 | E136: 157
A137: 2015 Quarter 2 | B137: Sales | C137: 92 | D137: D | E137: D
A138: 2015 Quarter 3 | B138: Sales | C138: 11 | D138: D | E138: D
A139: 2015 Quarter 3 | B139: Sales | C139: 22 | D139: 216986 | E139: 3
A140: 2015 Quarter 3 | B140: Sales | C140: 23 | D140: 8411539 | E140: 420
A141: 2015 Quarter 3 | B141: Sales | C141: 31 | D141: 447571 | E141: 43
A142: 2015 Quarter 3 | B142: Sales | C142: 32 | D142: 1126998 | E142: 78
A143: 2015 Quarter 3 | B143: Sales | C143: 33 | D143: 430367 | E143: 87
A144: 2015 Quarter 3 | B144: Sales | C144: 42 | D144: 4809750 | E144: 673
A145: 2015 Quarter 3 | B145: Sales | C145: 44 | D145: 29444044 | E145: 543
A146: 2015 Quarter 3 | B146: Sales | C146: 45 | D146: 18568237 | E146: 802
A147: 2015 Quarter 3 | B147: Sales | C147: 48 | D147: 56978 | E147: 6
A148: 2015 Quarter 3 | B148: Sales | C148: 49 | D148: D | E148: D
A149: 2015 Quarter 3 | B149: Sales | C149: 51 | D149: 4061259 | E149: 213
A150: 2015 Quarter 3 | B150: Sales | C150: 52 | D150: 1000934 | E150: 60
A151: 2015 Quarter 3 | B151: Sales | C151: 53 | D151: 2714164 | E151: 125
A152: 2015 Quarter 3 | B152: Sales | C152: 54 | D152: 1607843 | E152: 167
A153: 2015 Quarter 3 | B153: Sales | C153: 55 | D153: D | E153: D
A154: 2015 Quarter 3 | B154: Sales | C154: 56 | D154: 1635562 | E154: 207
A155: 2015 Quarter 3 | B155: Sales | C155: 61 | D155: 154303 | E155: 44
A156: 2015 Quarter 3 | B156: Sales | C156: 62 | D156: 21196 | E156: 22
A157: 2015 Quarter 3 | B157: Sales | C157: 71 | D157: 1023813 | E157: 23
A158: 2015 Quarter 3 | B158: Sales | C158: 72 | D158: 14654014 | E158: 77
A159: 2015 Quarter 3 | B159: Sales | C159: 81 | D159: 2443720 | E159: 156
A160: 2015 Quarter 3 | B160: Sales | C160: 92 | D160: D | E160: D
A161: 2015 Quarter 4 | B161: Sales | C161: 11 | D161: 13848 | E161: 6
A162: 2015 Quarter 4 | B162: Sales | C162: 21 | D162: D | E162: D
A163: 2015 Quarter 4 | B163: Sales | C163: 22 | D163: D | E163: D
A164: 2015 Quarter 4 | B164: Sales | C164: 23 | D164: 8451710 | E164: 456
A165: 2015 Quarter 4 | B165: Sales | C165: 31 | D165: 287648 | E165: 58
A166: 2015 Quarter 4 | B166: Sales | C166: 32 | D166: 803451 | E166: 82
A167: 2015 Quarter 4 | B167: Sales | C167: 33 | D167: 472850 | E167: 122
A168: 2015 Quarter 4 | B168: Sales | C168: 42 | D168: 4952071 | E168: 750
A169: 2015 Quarter 4 | B169: Sales | C169: 44 | D169: 27996422 | E169: 684
A170: 2015 Quarter 4 | B170: Sales | C170: 45 | D170: 20956812 | E170: 1148
A171: 2015 Quarter 4 | B171: Sales | C171: 48 | D171: 10675 | E171: 5
A172: 2015 Quarter 4 | B172: Sales | C172: 49 | D172: D | E172: D
A173: 2015 Quarter 4 | B173: Sales | C173: 51 | D173: 4527204 | E173: 242
A174: 2015 Quarter 4 | B174: Sales | C174: 52 | D174: 844870 | E174: 59
A175: 2015 Quarter 4 | B175: Sales | C175: 53 | D175: 1865339 | E175: 130
A176: 2015 Quarter 4 | B176: Sales | C176: 54 | D176: 1752021 | E176: 233
A177: 2015 Quarter 4 | B177: Sales | C177: 55 | D177: D | E177: D
A178: 2015 Quarter 4 | B178: Sales | C178: 56 | D178: 1973117 | E178: 239
A179: 2015 Quarter 4 | B179: Sales | C179: 61 | D179: 80249 | E179: 46
A180: 2015 Quarter 4 | B180: Sales | C180: 62 | D180: 42366 | E180: 24
A181: 2015 Quarter 4 | B181: Sales | C181: 71 | D181: 928525 | E181: 40
A182: 2015 Quarter 4 | B182: Sales | C182: 72 | D182: 12333415 | E182: 85
A183: 2015 Quarter 4 | B183: Sales | C183: 81 | D183: 2665526 | E183: 178
A184: 2015 Quarter 4 | B184: Sales | C184: 92 | D184: 7013 | E184: 3
A185: 2016 Quarter 1 | B185: Sales | C185: 11 | D185: 5532 | E185: 4
A186: 2016 Quarter 1 | B186: Sales | C186: 22 | D186: 84963 | E186: 3
A187: 2016 Quarter 1 | B187: Sales | C187: 23 | D187: 9136762 | E187: 434
A188: 2016 Quarter 1 | B188: Sales | C188: 31 | D188: 334831 | E188: 36
A189: 2016 Quarter 1 | B189: Sales | C189: 32 | D189: 914983 | E189: 67
A190: 2016 Quarter 1 | B190: Sales | C190: 33 | D190: 408275 | E190: 89
A191: 2016 Quarter 1 | B191: Sales | C191: 42 | D191: 4333912 | E191: 700
A192: 2016 Quarter 1 | B192: Sales | C192: 44 | D192: 25989395 | E192: 579
A193: 2016 Quarter 1 | B193: Sales | C193: 45 | D193: 17324562 | E193: 819
A194: 2016 Quarter 1 | B194: Sales | C194: 48 | D194: 12103 | E194: 4
A195: 2016 Quarter 1 | B195: Sales | C195: 49 | D195: D | E195: D
A196: 2016 Quarter 1 | B196: Sales | C196: 51 | D196: 4178719 | E196: 223
A197: 2016 Quarter 1 | B197: Sales | C197: 52 | D197: 869360 | E197: 58
A198: 2016 Quarter 1 | B198: Sales | C198: 53 | D198: 2171287 | E198: 121
A199: 2016 Quarter 1 | B199: Sales | C199: 54 | D199: 1553889 | E199: 190
A200: 2016 Quarter 1 | B200: Sales | C200: 55 | D200: D | E200: D
... 570 more rows

Sheet NAICS
A1: NAICS Code | B1: NAICS Title
A2: 11 | B2: Agriculture, Forestry, Fishing and Hunting
A3: 111 | B3: Crop Production
A4: 1111 | B4: Oilseed and Grain Farming
A5: 11111 | B5: Soybean Farming
A6: 111110 | B6: Soybean Farming
A7: 11112 | B7: Oilseed (except Soybean) Farming
A8: 111120 | B8: Oilseed (except Soybean) Farming
A9: 11113 | B9: Dry Pea and Bean Farming
A10: 111130 | B10: Dry Pea and Bean Farming
A11: 11114 | B11: Wheat Farming
A12: 111140 | B12: Wheat Farming
A13: 11115 | B13: Corn Farming
A14: 111150 | B14: Corn Farming
A15: 11116 | B15: Rice Farming
A16: 111160 | B16: Rice Farming
A17: 11119 | B17: Other Grain Farming
A18: 111191 | B18: Oilseed and Grain Combination Farming
A19: 111199 | B19: All Other Grain Farming
A20: 1112 | B20: Vegetable and Melon Farming
A21: 11121 | B21: Vegetable and Melon Farming
A22: 111211 | B22: Potato Farming
A23: 111219 | B23: Other Vegetable (except Potato) and Melon Farming
A24: 1113 | B24: Fruit and Tree Nut Farming
A25: 11131 | B25: Orange Groves
A26: 111310 | B26: Orange Groves
A27: 11132 | B27: Citrus (except Orange) Groves
A28: 111320 | B28: Citrus (except Orange) Groves
A29: 11133 | B29: Noncitrus Fruit and Tree Nut Farming
A30: 111331 | B30: Apple Orchards
A31: 111332 | B31: Grape Vineyards
A32: 111333 | B32: Strawberry Farming
A33: 111334 | B33: Berry (except Strawberry) Farming
A34: 111335 | B34: Tree Nut Farming
A35: 111336 | B35: Fruit and Tree Nut Combination Farming
A36: 111339 | B36: Other Noncitrus Fruit Farming
A37: 1114 | B37: Greenhouse, Nursery, and Floriculture Production
A38: 11141 | B38: Food Crops Grown Under Cover
A39: 111411 | B39: Mushroom Production
A40: 111419 | B40: Other Food Crops Grown Under Cover
A41: 11142 | B41: Nursery and Floriculture Production
A42: 111421 | B42: Nursery and Tree Production
A43: 111422 | B43: Floriculture Production
A44: 1119 | B44: Other Crop Farming
A45: 11191 | B45: Tobacco Farming
A46: 111910 | B46: Tobacco Farming
A47: 11192 | B47: Cotton Farming
A48: 111920 | B48: Cotton Farming
A49: 11193 | B49: Sugarcane Farming
A50: 111930 | B50: Sugarcane Farming
A51: 11194 | B51: Hay Farming
A52: 111940 | B52: Hay Farming
A53: 11199 | B53: All Other Crop Farming
A54: 111991 | B54: Sugar Beet Farming
A55: 111992 | B55: Peanut Farming
A56: 111998 | B56: All Other Miscellaneous Crop Farming
A57: 112 | B57: Animal Production and Aquaculture
A58: 1121 | B58: Cattle Ranching and Farming
A59: 11211 | B59: Beef Cattle Ranching and Farming, including Feedlots
A60: 112111 | B60: Beef Cattle Ranching and Farming
A61: 112112 | B61: Cattle Feedlots
A62: 11212 | B62: Dairy Cattle and Milk Production
A63: 112120 | B63: Dairy Cattle and Milk Production
A64: 11213 | B64: Dual-Purpose Cattle Ranching and Farming
A65: 112130 | B65: Dual-Purpose Cattle Ranching and Farming
A66: 1122 | B66: Hog and Pig Farming
A67: 11221 | B67: Hog and Pig Farming
A68: 112210 | B68: Hog and Pig Farming
A69: 1123 | B69: Poultry and Egg Production
A70: 11231 | B70: Chicken Egg Production
A71: 112310 | B71: Chicken Egg Production
A72: 11232 | B72: Broilers and Other Meat Type Chicken Production
A73: 112320 | B73: Broilers and Other Meat Type Chicken Production
A74: 11233 | B74: Turkey Production
A75: 112330 | B75: Turkey Production
A76: 11234 | B76: Poultry Hatcheries
A77: 112340 | B77: Poultry Hatcheries
A78: 11239 | B78: Other Poultry Production
A79: 112390 | B79: Other Poultry Production
A80: 1124 | B80: Sheep and Goat Farming
A81: 11241 | B81: Sheep Farming
A82: 112410 | B82: Sheep Farming
A83: 11242 | B83: Goat Farming
A84: 112420 | B84: Goat Farming
A85: 1125 | B85: Aquaculture
A86: 11251 | B86: Aquaculture
A87: 112511 | B87: Finfish Farming and Fish Hatcheries
A88: 112512 | B88: Shellfish Farming
A89: 112519 | B89: Other Aquaculture
A90: 1129 | B90: Other Animal Production
A91: 11291 | B91: Apiculture
A92: 112910 | B92: Apiculture
A93: 11292 | B93: Horses and Other Equine Production
A94: 112920 | B94: Horses and Other Equine Production
A95: 11293 | B95: Fur-Bearing Animal and Rabbit Production
A96: 112930 | B96: Fur-Bearing Animal and Rabbit Production
A97: 11299 | B97: All Other Animal Production
A98: 112990 | B98: All Other Animal Production
A99: 113 | B99: Forestry and Logging
A100: 1131 | B100: Timber Tract Operations
A101: 11311 | B101: Timber Tract Operations
A102: 113110 | B102: Timber Tract Operations
A103: 1132 | B103: Forest Nurseries and Gathering of Forest Products
A104: 11321 | B104: Forest Nurseries and Gathering of Forest Products
A105: 113210 | B105: Forest Nurseries and Gathering of Forest Products
A106: 1133 | B106: Logging
A107: 11331 | B107: Logging
A108: 113310 | B108: Logging
A109: 114 | B109: Fishing, Hunting and Trapping
A110: 1141 | B110: Fishing
A111: 11411 | B111: Fishing
A112: 114111 | B112: Finfish Fishing
A113: 114112 | B113: Shellfish Fishing
A114: 114119 | B114: Other Marine Fishing
A115: 1142 | B115: Hunting and Trapping
A116: 11421 | B116: Hunting and Trapping
A117: 114210 | B117: Hunting and Trapping
A118: 115 | B118: Support Activities for Agriculture and Forestry
A119: 1151 | B119: Support Activities for Crop Production
A120: 11511 | B120: Support Activities for Crop Production
A121: 115111 | B121: Cotton Ginning
A122: 115112 | B122: Soil Preparation, Planting, and Cultivating
A123: 115113 | B123: Crop Harvesting, Primarily by Machine
A124: 115114 | B124: Postharvest Crop Activities (except Cotton Ginning)
A125: 115115 | B125: Farm Labor Contractors and Crew Leaders
A126: 115116 | B126: Farm Management Services
A127: 1152 | B127: Support Activities for Animal Production
A128: 11521 | B128: Support Activities for Animal Production
A129: 115210 | B129: Support Activities for Animal Production
A130: 1153 | B130: Support Activities for Forestry
A131: 11531 | B131: Support Activities for Forestry
A132: 115310 | B132: Support Activities for Forestry
A133: 21 | B133: Mining, Quarrying, and Oil and Gas Extraction
A134: 211 | B134: Oil and Gas Extraction
A135: 2111 | B135: Oil and Gas Extraction
A136: 21111 | B136: Oil and Gas Extraction
A137: 211111 | B137: Crude Petroleum and Natural Gas Extraction
A138: 211112 | B138: Natural Gas Liquid Extraction
A139: 212 | B139: Mining (except Oil and Gas)
A140: 2121 | B140: Coal Mining
A141: 21211 | B141: Coal Mining
A142: 212111 | B142: Bituminous Coal and Lignite Surface Mining
A143: 212112 | B143: Bituminous Coal Underground Mining
A144: 212113 | B144: Anthracite Mining
A145: 2122 | B145: Metal Ore Mining
A146: 21221 | B146: Iron Ore Mining
A147: 212210 | B147: Iron Ore Mining
A148: 21222 | B148: Gold Ore and Silver Ore Mining
A149: 212221 | B149: Gold Ore Mining
A150: 212222 | B150: Silver Ore Mining
A151: 21223 | B151: Copper, Nickel, Lead, and Zinc Mining
A152: 212231 | B152: Lead Ore and Zinc Ore Mining
A153: 212234 | B153: Copper Ore and Nickel Ore Mining
A154: 21229 | B154: Other Metal Ore Mining
A155: 212291 | B155: Uranium-Radium-Vanadium Ore Mining
A156: 212299 | B156: All Other Metal Ore Mining
A157: 2123 | B157: Nonmetallic Mineral Mining and Quarrying
A158: 21231 | B158: Stone Mining and Quarrying
A159: 212311 | B159: Dimension Stone Mining and Quarrying
A160: 212312 | B160: Crushed and Broken Limestone Mining and Quarrying
A161: 212313 | B161: Crushed and Broken Granite Mining and Quarrying
A162: 212319 | B162: Other Crushed and Broken Stone Mining and Quarrying
A163: 21232 | B163: Sand, Gravel, Clay, and Ceramic and Refractory Minerals Mining and Quarrying
A164: 212321 | B164: Construction Sand and Gravel Mining
A165: 212322 | B165: Industrial Sand Mining
A166: 212324 | B166: Kaolin and Ball Clay Mining
A167: 212325 | B167: Clay and Ceramic and Refractory Minerals Mining
A168: 21239 | B168: Other Nonmetallic Mineral Mining and Quarrying
A169: 212391 | B169: Potash, Soda, and Borate Mineral Mining
A170: 212392 | B170: Phosphate Rock Mining
A171: 212393 | B171: Other Chemical and Fertilizer Mineral Mining
A172: 212399 | B172: All Other Nonmetallic Mineral Mining
A173: 213 | B173: Support Activities for Mining
A174: 2131 | B174: Support Activities for Mining
A175: 21311 | B175: Support Activities for Mining
A176: 213111 | B176: Drilling Oil and Gas Wells
A177: 213112 | B177: Support Activities for Oil and Gas Operations
A178: 213113 | B178: Support Activities for Coal Mining
A179: 213114 | B179: Support Activities for Metal Mining
A180: 213115 | B180: Support Activities for Nonmetallic Minerals (except Fuels) Mining
A181: 22 | B181: Utilities
A182: 221 | B182: Utilities
A183: 2211 | B183: Electric Power Generation, Transmission and Distribution
A184: 22111 | B184: Electric Power Generation
A185: 221111 | B185: Hydroelectric Power Generation
A186: 221112 | B186: Fossil Fuel Electric Power Generation
A187: 221113 | B187: Nuclear Electric Power Generation
A188: 221114 | B188: Solar Electric Power Generation
A189: 221115 | B189: Wind Electric Power Generation
A190: 221116 | B190: Geothermal Electric Power Generation
A191: 221117 | B191: Biomass Electric Power Generation
A192: 221118 | B192: Other Electric Power Generation
A193: 221119 | B193: Other Electric Power Generation
A194: 22112 | B194: Electric Power Transmission, Control, and Distribution
A195: 221121 | B195: Electric Bulk Power Transmission and Control
A196: 221122 | B196: Electric Power Distribution
A197: 2212 | B197: Natural Gas Distribution
A198: 22121 | B198: Natural Gas Distribution
A199: 221210 | B199: Natural Gas Distribution
A200: 2213 | B200: Water, Sewage and Other Systems
... 2107 more rows
